{"text_format":"1","workbook":"xlsx","n_sheets":10,"sheets":["10 DÍAS (1 UA)","20 DÍAS (1 UA)","10 DÍAS (2 o más UA)","20 DÍAS (2 o más UA)","Solicitudes Acceso restringido","5 DÍAS (1 UA)","5 DÍAS (2 o más UA)","5 DIAS (2 o más UA)","RESUMEN POR UA","TABLAS"],"not_rendered":{"charts":4,"images":4,"macros":1,"external_links":0,"defined_names":24,"comments":3,"pivot_tables":0},"unopened":[],"bounds":{"document_bytes":16777216,"sheet_cells":100000,"rows_first":2000,"rows_last":500,"rows_between":2000,"halvings":0,"cell_chars":16384,"cell_head_chars":4096},"cells_cut":0,"cells_raw":0,"read":"whole","date_system":"1900"}

{"sheet":"10 DÍAS (1 UA)","index":0,"n_rows":123,"n_cols":26,"rows_kept":123,"cut":false,"hidden":false,"merged":[[1,3,1,8],[8,21,8,22],[8,23,8,24],[8,25,8,26],[8,27,8,28],[8,1,8,2],[8,3,8,4],[8,5,8,6],[6,1,6,24],[7,1,7,24],[8,7,8,8],[8,9,8,10],[8,11,8,12],[8,13,8,14],[8,15,8,16],[8,17,8,18],[8,19,8,20]]}
[null,null,"FOLIOS PENDIENTES A LA FECHA DE REPORTE"]
[]
[]
[]
[null,null,"FOLIOS PENDIENTES A LA FECHA DE REPORTE"]
[]
[null,"TIEMPO DE ATENCIÓN A SOLICITUDES DE INFORMACIÓN, FOLIOS DEL 06 DE ENERO AL 04 DEMAYO DE 2016"]
[null,"ATENDIDAS POR \"UNA UNIDAD ADMINISTRATIVA\" (10 DÍAS HÁBILES)"]
[null,"Secretaría Técnica",null,"Secretaría Ejecutiva",null,"Contraloría",null,"Dirección Jurídica y Desarrollo Normativo",null,"Dirección de Capacitación y Cultura de la Transparencia",null,"Dirección de Evaluación y Estudios",null,"Dirección de Datos Personales",null,"Dirección de Vinculación con la Sociedad",null,"Dirección de Tecnologías de Información",null,"Dirección de Administración y Finanzas",null,"Dirección de Comunicación Social",null,"Oficina de Información Pública"]
[null,"Folio","Días","Folio","Días","Folio","Días","Folio","Días","Folio","Días","Folio","Días","Folio","Días","Folio","Días","Folio","Días","Folio","Días","Folio","Días","Folio","Días"]
[1,"3100000015116",6,"3100000142115",7,"3100000016216",2,"3100000143015",10,"3100000011816",3,"3100000147115",10,"3100000004416",9,"3100000016116",5,"3100000000416",3,"3100000146615",5,"3100000015216",5,"3100000145415",3]
[{"$f":"SUM(A11+1)","v":2},"3100000022516",5,"3100000142415",7,"3100000029316",9,"3100000143215",10,"3100000014816",4,"3100000005616",8,"3100000016516",5,"3100000030716",9,"3100000006116",7,"3100000142515",10,"3100000027516",1,"3100000007016",1]
[{"$f":"SUM(A12+1)","v":3},"3100000024316",5,"3100000017016",3,"3100000029416",5,"3100000001516",9,"3100000015516",5,"3100000005716",8,"3100000041216",8,"3100000065516",6,"3100000011416",1,"3100000142615",10,"3100000027516",2,"3100000038416",5]
[4,"3100000058416",10,"3100000019516",10,"3100000049916",3,"3100000001616",9,"3100000042816",8,"3100000006716",10,null,null,"3100000065816",2,"3100000011716",1,"3100000001416",5,"3100000049416",8,"3100000069216",5]
[5,"3100000058516",10,"3100000019616",10,"3100000067116",5,"3100000001716",9,"3100000043916",8,"3100000012216",10,null,null,"3100000072816",5,"3100000016916",8,"3100000003916",10,null,null,"3100000069316",5]
[6,"3100000068516",10,"3100000030216",7,"3100000067216",5,"3100000001816",9,"3100000058916",1,"3100000015616",6,null,null,null,null,"3100000030416",6,"3100000010416",9,null,null,"3100000071516",3]
[7,"3100000074716",5,"3100000035516",10,null,null,"3100000001916",9,null,null,"3100000017116",7,null,null,null,null,"3100000035216",0,"3100000011916",8,null,null,"3100000074116",1]
[8,null,null,"3100000035616",10,null,null,"3100000002016",9,null,null,"3100000021616",8,null,null,null,null,"3100000035316",0,"3100000012116",10,null,null,"3100000074216",4]
[9,null,null,"3100000043816",9,null,null,"3100000002116",9,null,null,"3100000024716",10,null,null,null,null,"3100000035416",6,"3100000015916",3,null,null,"3100000075016",3]
[10,null,null,"3100000052116",10,null,null,"3100000002216",9,null,null,"3100000028016",9,null,null,null,null,"3100000046916",1,"3100000016716",9]
[11,null,null,"3100000052216",10,null,null,"3100000002316",9,null,null,"3100000028116",7,null,null,null,null,"3100000060416",5,"3100000017216",7]
[12,null,null,"3100000064116",7,null,null,"3100000002416",9,null,null,"3100000028216",7,null,null,null,null,null,null,"3100000024916",6]
[13,null,null,"3100000065916",10,null,null,"3100000002516",9,null,null,"3100000028416",7,null,null,null,null,null,null,"3100000025016",8]
[14,null,null,"3100000066016",10,null,null,"3100000002616",9,null,null,"3100000028616",8,null,null,null,null,null,null,"3100000025316",5]
[15,null,null,"3100000066416",10,null,null,"3100000002716",9,null,null,"3100000028716",7,null,null,null,null,null,null,"3100000026016",10]
[16,null,null,"3100000066516",10,null,null,"3100000002816",9,null,null,"3100000032716",9,null,null,null,null,null,null,"3100000026116",9]
[17,null,null,null,null,null,null,"3100000002916",9,null,null,"3100000032816",9,null,null,null,null,null,null,"3100000026716",7]
[18,null,null,null,null,null,null,"3100000003016",9,null,null,"3100000034716",8,null,null,null,null,null,null,"3100000026816",7]
[19,null,null,null,null,null,null,"3100000003116",9,null,null,"3100000039016",8,null,null,null,null,null,null,"3100000027116",7]
[20,null,null,null,null,null,null,"3100000003216",9,null,null,"3100000041316",6,null,null,null,null,null,null,"3100000028816",3]
[21,null,null,null,null,null,null,"3100000003316",9,null,null,"3100000046416",9,null,null,null,null,null,null,"3100000029016",10]
[22,null,null,null,null,null,null,"3100000003416",8,null,null,"3100000047616",9,null,null,null,null,null,null,"3100000029716",10]
[23,null,null,null,null,null,null,"3100000003516",9,null,null,"3100000047816",9,null,null,null,null,null,null,"3100000030916",10]
[24,null,null,null,null,null,null,"3100000003616",8,null,null,"3100000047916",9,null,null,null,null,null,null,"3100000031616",7]
[25,null,null,null,null,null,null,"3100000003716",8,null,null,"3100000053516",10,null,null,null,null,null,null,"3100000036816",10]
[26,null,null,null,null,null,null,"3100000003816",9,null,null,"3100000055316",1,null,null,null,null,null,null,"3100000041416",10]
[27,null,null,null,null,null,null,"3100000004016",8,null,null,"3100000055416",1,null,null,null,null,null,null,"3100000043216",5]
[28,null,null,null,null,null,null,"3100000004116",8,null,null,"3100000055516",1,null,null,null,null,null,null,"3100000043416",8]
[29,null,null,null,null,null,null,"3100000004216",10,null,null,"3100000055616",1,null,null,null,null,null,null,"3100000043516",10]
[30,null,null,null,null,null,null,"3100000005816",10,null,null,"3100000055716",1,null,null,null,null,null,null,"3100000044116",9]
[31,null,null,null,null,null,null,"3100000006016",10,null,null,"3100000055816",1,null,null,null,null,null,null,"3100000045416",5]
[32,null,null,null,null,null,null,"3100000010716",10,null,null,"3100000055916",1,null,null,null,null,null,null,"3100000047116",10]
[33,null,null,null,null,null,null,"3100000011016",10,null,null,"3100000056016",1,null,null,null,null,null,null,"3100000048616",10]
[34,null,null,null,null,null,null,"3100000011516",10,null,null,"3100000056116",1,null,null,null,null,null,null,"3100000051816",6]
[35,null,null,null,null,null,null,"3100000011616",10,null,null,"3100000056216",1,null,null,null,null,null,null,"3100000054516",3]
[36,null,null,null,null,null,null,"3100000014416",5,null,null,"3100000056316",1,null,null,null,null,null,null,"3100000054616",3]
[37,null,null,null,null,null,null,"´3100000034816",10,null,null,"3100000056416",1,null,null,null,null,null,null,"3100000067716",10]
[38,null,null,null,null,null,null,"3100000035016",10,null,null,"3100000056516",3,null,null,null,null,null,null,"3100000067816",10]
[39,null,null,null,null,null,null,"3100000039316",10,null,null,"3100000056616",3,null,null,null,null,null,null,"3100000067916",10]
[40,null,null,null,null,null,null,"3100000043716",9,null,null,"3100000075416",5,null,null,null,null,null,null,"3100000068016",10]
[41,null,null,null,null,null,null,"3100000044216",10,null,null,null,null,null,null,null,null,null,null,"3100000068116",10]
[42,null,null,null,null,null,null,"3100000044316",10,null,null,null,null,null,null,null,null,null,null,"3100000070916",3]
[43,null,null,null,null,null,null,"3100000045116",10,null,null,null,null,null,null,null,null,null,null,"3100000075116",7]
[44,null,null,null,null,null,null,"3100000045616",10]
[45,null,null,null,null,null,null,"3100000046016",10]
[46,null,null,null,null,null,null,"3100000053616",10]
[47,null,null,null,null,null,null,"3100000053716",10]
[48,null,null,null,null,null,null,"3100000053816",10]
[49,null,null,null,null,null,null,"3100000053916",10]
[50,null,null,null,null,null,null,"3100000054016",10]
[51,null,null,null,null,null,null,"3100000057216",10]
[52,null,null,null,null,null,null,"3100000057416",10]
[53,null,null,null,null,null,null,"3100000057516",10]
[54,null,null,null,null,null,null,"3100000057816",10]
[55,null,null,null,null,null,null,"3100000059316",10]
[56,null,null,null,null,null,null,"3100000063616",10]
[57,null,null,null,null,null,null,"3100000064816",5]
[58,null,null,null,null,null,null,"3100000065716",10]
[59,null,null,null,null,null,null,"3100000067616",7]
[60,null,null,null,null,null,null,"3100000068316",10]
[61]
[62]
[63]
[64]
[65]
[66]
[{"$f":"SUM(A76+1)","v":67}]
[68]
[69]
[70]
[71]
[72]
[73]
[74]
[75]
[76]
[77]
[78]
[79]
[80]
[81]
[82]
[83]
[84]
[85]
[86]
[87]
[88]
[89]
[90]
[91]
[92]
[93]
[94]
[95]
[96]
[97]
[98]
[99]
[100]
[101]
[102]
[103]
[104]
[105]
[106]
[107]
[108]
[109]
[110]
[]
[null,"PROMEDIO",{"$f":"AVERAGE(C11:C121)","v":7.2857142857142856},"PROMEDIO",{"$f":"AVERAGE(E11:E121)","v":8.75},"PROMEDIO",{"$f":"AVERAGE(G11:G121)","v":4.833333333333333},"PROMEDIO",{"$f":"AVERAGE(I11:I121)","v":9.25},"PROMEDIO",{"$f":"AVERAGE(K11:K121)","v":4.833333333333333},"PROMEDIO",{"$f":"AVERAGE(M11:M121)","v":5.7750000000000004},"PROMEDIO",{"$f":"AVERAGE(O11:O121)","v":7.333333333333333},"PROMEDIO",{"$f":"AVERAGE(Q11:Q121)","v":5.4},"PROMEDIO",{"$f":"AVERAGE(S11:S121)","v":3.4545454545454546},"PROMEDIO",{"$f":"AVERAGE(U11:U121)","v":7.7674418604651159},"PROMEDIO",{"$f":"AVERAGE(W11:W121)","v":4},"PROMEDIO",{"$f":"AVERAGE(Y11:Y121)","v":3.3333333333333335}]
[null,"SUMA",{"$f":"COUNT(C11:C120)","v":7},null,{"$f":"COUNT(E11:E120)","v":16},null,{"$f":"COUNT(G11:G120)","v":6},null,{"$f":"COUNT(I11:I120)","v":60},null,{"$f":"COUNT(K11:K120)","v":6},null,{"$f":"COUNT(M11:M120)","v":40},null,{"$f":"COUNT(O11:O120)","v":3},null,{"$f":"COUNT(Q11:Q120)","v":5},null,{"$f":"COUNT(S11:S120)","v":11},null,{"$f":"COUNT(U11:U120)","v":43},null,{"$f":"COUNT(W11:W120)","v":4},null,{"$f":"COUNT(Y11:Y120)","v":9},{"$f":"SUM(C123:Y123)","v":210}]

{"sheet":"20 DÍAS (1 UA)","index":1,"n_rows":22,"n_cols":26,"rows_kept":22,"cut":false,"hidden":false,"merged":[[6,27,6,28],[6,15,6,16],[6,17,6,18],[6,19,6,20],[6,21,6,22],[6,23,6,24],[6,25,6,26],[0,3,0,8],[4,1,4,24],[5,1,5,24],[6,1,6,2],[6,3,6,4],[6,5,6,6],[6,7,6,8],[6,9,6,10],[6,11,6,12],[6,13,6,14]]}
[]
[]
[null,null,"FOLIOS PENDIENTES A LA FECHA DE REPORTE"]
[]
[null,"TIEMPO DE ATENCIÓN A SOLICITUDES DE INFORMACIÓN, FOLIOS DEL 06 DE ENERO AL 04 DE MAYO DE 2016"]
[null,"ATENDIDAS POR \"UNA UNIDAD ADMINISTRATIVA\" (20 DÍAS HÁBILES)"]
[null,"Secretaría Técnica",null,"Secretaría Ejecutiva",null,"Contraloría",null,"Dirección Jurídica y Desarrollo Normativo",null,"Dirección de Capacitación y Cultura de la Transparencia",null,"Dirección de Evaluación y Estudios",null,"Dirección de Datos Personales",null,"Dirección de Vinculación con la Sociedad",null,"Dirección de Tecnologías de Información",null,"Dirección de Administración y Finanzas",null,"Dirección de Comunicación Social",null,"Oficina de Información Pública"]
[null,"Folio","Días","Folio","Días","Folio","Días","Folio","Días","Folio","Días","Folio","Días","Folio","Días","Folio","Días","Folio","Días","Folio","Días","Folio","Días","Folio","Días"]
[1,null,null,"3100000060216",20,null,null,"3100000135615",20,null,null,"3100000004516",13,"3100000142815",20,null,null,null,null,"3100000145515",11]
[2,null,null,null,null,null,null,"3100000139015",20,null,null,"3100000005916",14,"3100000063816",20,null,null,null,null,"3100000004316",20]
[3,null,null,null,null,null,null,"3100000011216",14,null,null,"3100000060916",13,"3100000064016",20,null,null,null,null,"3100000031116",15]
[4,null,null,null,null,null,null,"3100000011316",18,null,null,null,null,"3100000064216",20,null,null,null,null,"3100000063716",11]
[5,null,null,null,null,null,null,"3100000044416",20,null,null,null,null,"3100000065016",18,null,null,null,null,"3100000068216",14]
[6,null,null,null,null,null,null,null,null,null,null,null,null,"3100000070016",15]
[7,null,null,null,null,null,null,null,null,null,null,null,null,"3100000071616",14]
[8,null,null,null,null,null,null,null,null,null,null,null,null,"3100000072016",14]
[9]
[10]
[11]
[12]
[null,"PROMEDIO",{"$f":"AVERAGE(C9:C20)","v":{"$error":"#DIV/0!"}},"PROMEDIO",{"$f":"AVERAGE(E9:E20)","v":20},"PROMEDIO",{"$f":"AVERAGE(G9:G20)","v":{"$error":"#DIV/0!"}},"PROMEDIO",{"$f":"AVERAGE(I9:I20)","v":18.399999999999999},"PROMEDIO",{"$f":"AVERAGE(K9:K20)","v":{"$error":"#DIV/0!"}},"PROMEDIO",{"$f":"AVERAGE(M9:M20)","v":13.333333333333334},"PROMEDIO",{"$f":"AVERAGE(O9:O20)","v":17.625},"PROMEDIO",{"$f":"AVERAGE(Q9:Q20)","v":{"$error":"#DIV/0!"}},"PROMEDIO",{"$f":"AVERAGE(S9:S20)","v":{"$error":"#DIV/0!"}},"PROMEDIO",{"$f":"AVERAGE(U9:U20)","v":14.2},"PROMEDIO",{"$f":"AVERAGE(W9:W20)","v":{"$error":"#DIV/0!"}},"PROMEDIO",{"$f":"AVERAGE(Y9:Y20)","v":{"$error":"#DIV/0!"}}]
[null,null,{"$f":"COUNT(C9:C20)","v":0},null,{"$f":"COUNT(E9:E20)","v":1},null,{"$f":"COUNT(G9:G20)","v":0},null,{"$f":"COUNT(I9:I20)","v":5},null,{"$f":"COUNT(K9:K20)","v":0},null,{"$f":"COUNT(M9:M20)","v":3},null,{"$f":"COUNT(O9:O20)","v":8},null,{"$f":"COUNT(Q9:Q20)","v":0},null,{"$f":"COUNT(S9:S20)","v":0},null,{"$f":"COUNT(U9:U20)","v":5},null,{"$f":"COUNT(W9:W20)","v":0},null,{"$f":"COUNT(Y9:Y20)","v":0},{"$f":"SUM(C22:Y22)","v":22}]

{"sheet":"10 DÍAS (2 o más UA)","index":2,"n_rows":103,"n_cols":14,"rows_kept":103,"cut":false,"hidden":false,"merged":[[4,16,4,17],[4,1,5,1],[4,14,4,15],[2,1,2,13],[3,1,3,13]]}
[null,null,"FOLIOS PENDIENTES A LA FECHA DE REPORTE"]
[]
[null,"TIEMPO DE ATENCIÓN A SOLICITUDES DE INFORMACIÓN, FOLIOS DEL 06 DE ENERO AL 04 DE MAYO DE 2016"]
[null,"ATENDIDAS POR \"DOS O MÁS UNIDADES ADMINISTRATIVAS\" (10 DÍAS HÁBILES)"]
[null,"Folio","Secretaría Técnica","Secretaría Ejecutiva","Contraloría","Dirección Jurídica y Desarrollo Normativo","Dirección de Capacitación y Cultura de la Transparencia","Dirección de Evaluación y Estudios","Dirección de Datos Personales","Dirección de Vinculación con la Sociedad","Dirección de Tecnologías de Información","Dirección de Administración y Finanzas","Dirección de Comunicación Social","Oficina de Información Pública"]
[null,null,"Días","Días","Días","Días","Días","Días","Días","Días","Días","Días","Días","Días"]
[1,3100000143515,null,null,null,10,null,6,null,null,5]
[2,3100000143715,null,null,2,null,null,null,null,null,null,10]
[3,3100000143815,null,null,null,null,9,null,null,5]
[4,3100000143915,null,null,null,null,9,null,null,5]
[5,3100000144515,null,null,2,null,null,null,10]
[6,3100000145015,9,null,null,10,null,null,null,null,1,7]
[7,3100000145115,10,null,null,10]
[8,3100000145215,10,null,null,null,null,null,null,null,1]
[9,3100000142715,null,10,null,null,null,null,null,null,null,10]
[10,3100000146415,null,null,null,null,null,null,null,null,null,9,null,0]
[11,3100000147115,null,null,null,null,null,10,null,null,null,null,null,0]
[12,3100000000216,9,null,null,10]
[13,3100000004216,null,null,null,10,null,null,null,null,null,null,null,0]
[14,3100000005016,null,null,null,null,null,8,8]
[15,3100000007216,7,null,null,10,null,null,null,null,8,4]
[16,3100000007616,null,null,null,10,null,9]
[17,3100000007916,null,4,null,null,4,8]
[18,3100000010216,null,null,null,null,5,10]
[19,3100000010516,null,null,null,10,5,null,null,null,null,null,null,0]
[20,3100000011116,2,null,null,10]
[21,3100000014016,null,null,null,null,null,null,null,null,2,5]
[22,3100000015316,3,null,null,5]
[23,3100000015416,3,null,null,5]
[24,3100000016016,null,null,null,null,3,null,null,6,null,6]
[25,3100000016616,3,null,null,10]
[26,3100000017316,null,null,null,null,3,null,null,4,null,4]
[27,3100000019916,7,null,null,null,null,null,null,null,null,null,null,0]
[28,3100000022716,5,null,null,null,null,null,null,null,null,5]
[29,3100000025616,null,null,null,null,null,9,null,null,2]
[30,3100000026516,null,null,null,null,null,8,null,null,8]
[31,3100000026616,null,null,null,null,null,8,null,null,8]
[32,3100000027316,3,null,null,10,null,null,null,null,5]
[33,3100000027416,null,null,null,null,null,null,null,null,null,7,3]
[34,3100000029916,null,null,null,null,null,null,null,null,null,10,1]
[35,3100000030016,null,7,null,10]
[36,3100000030816,null,null,null,null,null,null,null,8,null,10]
[37,3100000031916,null,5,null,10,5]
[38,3100000032016,null,5,null,10,5]
[39,3100000032916,null,4,null,9,4]
[40,3100000033016,null,4,null,9,4]
[41,3100000033116,null,3,null,8,3]
[42,3100000033216,null,3,null,8,3]
[43,3100000033516,null,null,null,null,3,null,null,null,null,6]
[44,3100000033616,null,null,null,null,4,null,null,null,null,6]
[45,3100000033716,null,null,null,null,3,null,null,null,null,6]
[46,3100000033816,null,null,null,null,6,null,null,null,null,6]
[47,3100000033916,null,null,null,null,6,null,null,null,null,6]
[48,3100000034016,null,null,null,null,5,null,null,null,null,10]
[49,3100000034116,null,null,null,null,5,null,null,null,null,10]
[50,3100000034216,null,null,null,null,5,null,null,null,null,10]
[51,3100000034316,null,null,3,null,null,null,null,null,null,10]
[52,3100000037116,null,null,3,10,null,10,null,null,null,10]
[53,3100000038016,null,0,null,5,3]
[54,3100000040516,null,null,null,null,null,null,null,null,2,null,null,1]
[55,3100000044016,null,null,null,null,null,9,10]
[56,3100000045216,null,null,null,10,null,null,null,null,3]
[57,3100000045916,null,null,null,null,null,null,null,null,null,10,9]
[58,3100000046016,null,null,null,10,null,null,7]
[59,3100000046616,6,null,5,10]
[60,3100000046816,null,9,null,null,null,null,null,null,null,null,null,0]
[61,3100000048216,9,8,7,7,6,7,7,9,7,9,7]
[62,3100000048316,9,8,7,7,6,7,7,5,7,9,7]
[63,3100000048416,9,8,7,7,6,7,7,5,7,9,7]
[64,3100000048516,9,8,7,8,6,7,7,5,7,10,7]
[65,3100000049016,9,8,7,8,6,7,7,9,7,10,7]
[66,3100000049116,9,8,7,8,5,7,7,9,7,9,7]
[67,3100000049216,9,8,7,8,6,9,7,9,9,9,10]
[68,3100000049816,7,null,5,10]
[69,3100000050516,null,null,null,null,null,7,null,null,null,null,null,1]
[70,3100000050616,null,null,null,null,8,null,null,null,6]
[71,3100000051216,null,null,8,10,5,8]
[72,3100000051616,null,null,null,null,null,3,null,null,8]
[73,3100000052416,null,null,null,null,7,null,null,2,null,10]
[74,3100000052516,null,null,null,null,7,null,null,2,null,10]
[75,3100000054116,8,null,null,10]
[76,3100000056916,null,null,null,10,null,3,1]
[77,3100000057116,null,null,2,10,null,null,null,null,null,null,null,0]
[78,3100000060816,null,null,null,null,5,null,null,2]
[79,3100000066116,null,10,null,null,null,null,null,10]
[80,3100000066216,null,null,null,null,null,null,null,10,null,8]
[81,3100000066316,null,10,null,null,null,null,null,10]
[82,3100000066616,null,10,null,10]
[83,3100000066716,null,10,null,null,null,null,null,10,null,9]
[84,3100000066816,null,10,null,null,null,null,null,10,null,8]
[85,3100000067016,null,null,5,null,null,null,null,null,null,5]
[86,3100000067416,null,null,5,null,null,null,null,null,null,5]
[87,3100000067516,null,null,null,null,null,null,null,9,null,8]
[88,3100000069416,null,9,null,null,null,null,null,9,null,8]
[89,3100000069616,null,null,null,10,null,8]
[90,3100000072316,null,8,null,null,null,6]
[91,3100000072616,null,7,null,null,null,null,null,null,null,3]
[92,3100000072516,null,9,null,10,null,null,null,7]
[93,3100000072716,null,null,null,null,null,null,null,5,null,1]
[94,3100000074916,null,null,2,null,null,null,null,null,null,8]
[]
[null,"PROMEDIO",{"$f":"AVERAGE(C7:C101)","v":7.0454545454545459},7.1481481481481479,5.0555555555555554,9.0500000000000007,5.1470588235294121,7.541666666666667,7.083333333333333,6.875,5.5,7.7380952380952381,6.5,0.22222222222222221]
[null,{"$f":"COUNT(B7:B100)","v":94}]

{"sheet":"20 DÍAS (2 o más UA)","index":3,"n_rows":35,"n_cols":14,"rows_kept":35,"cut":false,"hidden":false,"merged":[[4,16,4,17],[0,6,0,8],[2,1,2,13],[3,1,3,13],[4,1,5,1],[4,14,4,15]]}
[null,null,"FOLIOS PENDIENTES A LA FECHA DE REPORTE",null,null,null,"No ampliaron plazo, no se cuenta para el promedio"]
[]
[null,"TIEMPO DE ATENCIÓN A SOLICITUDES DE INFORMACIÓN, FOLIOS DEL 06 DE ENERO AL 04 DE MAYO DE 2016"]
[null,"ATENDIDAS POR \"DOS O MÁS UNIDADES ADMINISTRATIVAS\" (20 DÍAS HÁBILES)"]
[null,"Folio","Secretaría Técnica","Secretaría Ejecutiva","Contraloría","Dirección Jurídica y Desarrollo Normativo","Dirección de Capacitación y Cultura de la Transparencia","Dirección de Evaluación y Estudios","Dirección de Datos Personales","Dirección de Vinculación con la Sociedad","Dirección de Tecnologías de Información","Dirección de Administración y Finanzas","Dirección de Comunicación Social","Oficina de Información Pública"]
[null,null,"Días","Días","Días","Días","Días","Días","Días","Días","Días","Días","Días","Días"]
[1,3100000143115,13,null,null,10]
[2,3100000143415,null,null,null,null,null,9,20,null,5]
[3,3100000144215,null,8,null,null,null,null,null,null,null,14]
[4,3100000146115,null,null,null,null,null,9,null,null,null,11,null,0]
[5,3100000005416,10,null,null,null,null,11]
[6,3100000013316,null,null,null,20,null,null,null,null,null,5]
[7,3100000050216,null,null,null,null,null,null,null,null,null,19,10]
[8,3100000056816,null,null,null,20,null,null,10]
[9,3100000059716,10,null,4,8,4,4,null,null,null,20]
[10,3100000059816,10,null,4,8,4,4,null,null,null,20]
[12,3100000059916,10,null,4,8,4,4,null,null,null,20]
[13,3100000060016,10,null,4,8,4,4,null,null,null,20]
[14,3100000060116,10,null,4,8,4,4,null,null,null,20]
[15,3100000070816,null,null,null,20,null,null,null,null,3]
[16]
[17]
[18]
[19]
[20]
[21]
[22]
[23]
[24]
[25]
[26]
[27]
[28]
[null,"PROMEDIO",{"$f":"AVERAGEIF(C7:C33,\">10\")","v":13},{"$error":"#DIV/0!"},{"$error":"#DIV/0!"},20,{"$error":"#DIV/0!"},11,20,{"$error":"#DIV/0!"},{"$error":"#DIV/0!"},18,{"$error":"#DIV/0!"},{"$error":"#DIV/0!"}]
[null,{"$f":"COUNT(B7:B20)","v":14}]

{"sheet":"Solicitudes Acceso restringido","index":4,"n_rows":23,"n_cols":17,"rows_kept":23,"cut":false,"hidden":false,"merged":[[5,1,5,16],[4,1,4,16],[6,1,7,1]]}
[null,null,"FOLIOS PENDIENTES A LA FECHA DE REPORTE"]
[null,null,"UNIDAD ADMINISTRATIVA QUE CLASIFICÓ INFORMACIÓN"]
[null,null,"UNIDAD ADMINISTRATIVA QUE NO CLASIFICÓ INFORMACIÓN. NO SE TOMA EN CUENTA PARA EL PROMEDIO"]
[]
[null,"TIEMPO DE ATENCIÓN A SOLICITUDES DE INFORMACIÓN, FOLIOS DEL 06 DE ENERO AL 04 DE MAYO DE 2016"]
[null,"ACCESO RESTRINGIDO CONTENIDA EN LA RESPUESTA DE UNA O MÁS UNIDADES ADMINISTRATIVAS."]
[null,"Folio","Secretaría Técnica","Secretaría Ejecutiva","Contraloría","Dirección Jurídica y Desarrollo Normativo","Dirección de Capacitación y Cultura de la Transparencia","Dirección de Evaluación y Estudios","Dirección de Datos Personales","Dirección de Vinculación con la Sociedad","Dirección de Tecnologías de Información","Dirección de Administración y Finanzas","Dirección de Comunicación Social","Oficina de Información Pública","OBSERVACIONES","MODALIDAD","NO. ACUERDO / SUPUESTO LEGAL"]
[null,null,"Días","Días","Días","Días","Días","Días","Días","Días","Días","Días","Días","Días"]
[1,"3100000009816",null,null,null,null,null,null,null,null,null,9,null,null,"CRITERIO PLENO","Confidencial","0001/SCTE-09-01/2012"]
[2]
[3]
[4]
[5]
[6]
[7]
[8]
[9]
[10]
[null,"PROMEDIO",{"$f":"SumbyColor($B$2,C9:C18)/CountCcolor($B$2,C9:C18)","v":{"$error":"#DIV/0!"}},{"$f":"SumbyColor($B$2,D9:D18)/CountCcolor($B$2,D9:D18)","v":{"$error":"#DIV/0!"}},{"$f":"SumbyColor($B$2,E9:E18)/CountCcolor($B$2,E9:E18)","v":{"$error":"#DIV/0!"}},{"$f":"SumbyColor($B$2,F9:F18)/CountCcolor($B$2,F9:F18)","v":{"$error":"#DIV/0!"}},{"$f":"SumbyColor($B$2,G9:G18)/CountCcolor($B$2,G9:G18)","v":{"$error":"#DIV/0!"}},{"$f":"SumbyColor($B$2,H9:H18)/CountCcolor($B$2,H9:H18)","v":{"$error":"#DIV/0!"}},{"$f":"SumbyColor($B$2,I9:I18)/CountCcolor($B$2,I9:I18)","v":{"$error":"#DIV/0!"}},{"$f":"SumbyColor($B$2,J9:J18)/CountCcolor($B$2,J9:J18)","v":{"$error":"#DIV/0!"}},{"$f":"SumbyColor($B$2,K9:K18)/CountCcolor($B$2,K9:K18)","v":{"$error":"#DIV/0!"}},{"$f":"SumbyColor($B$2,L9:L18)/CountCcolor($B$2,L9:L18)","v":9},{"$f":"SumbyColor($B$2,M9:M18)/CountCcolor($B$2,M9:M18)","v":{"$error":"#DIV/0!"}},{"$f":"SumbyColor($B$2,N9:N18)/CountCcolor($B$2,N9:N18)","v":{"$error":"#DIV/0!"}}]
[]
[]
[null,null,null,null,null,null,null,null,null,null,null,null,null,null,null,null,"CRITERIO PLENO"]
[null,null,null,null,null,null,null,null,null,null,null,null,null,null,null,null,"SE REUNIÓ CT"]

{"sheet":"5 DÍAS (1 UA)","index":5,"n_rows":291,"n_cols":26,"rows_kept":291,"cut":false,"hidden":false,"merged":[[3,1,3,24],[2,1,2,24],[4,25,4,26],[4,15,4,16],[4,17,4,18],[4,19,4,20],[4,21,4,22],[4,23,4,24],[4,9,4,10],[4,11,4,12],[4,13,4,14],[4,1,4,2],[4,3,4,4],[4,5,4,6],[4,7,4,8]]}
[null,null,"FOLIOS PENDIENTES A LA FECHA DE REPORTE"]
[]
[null,"TIEMPO DE ATENCIÓN A SOLICITUDES DE INFORMACIÓN, FOLIOS DEL 6 DE ENERO AL 04 DE MAYO DE 2016"]
[null,"ATENDIDAS POR \"UNA UNIDAD ADMINISTRATIVA\" (5 DÍAS HÁBILES)"]
[null,"Secretaría Técnica",null,"Secretaría Ejecutiva",null,"Contraloría",null,"Dirección Jurídica y Desarrollo Normativo",null,"Dirección de Capacitación y Cultura de la Transparencia",null,"Dirección de Evaluación y Estudios",null,"Dirección de Datos Personales",null,"Dirección de Vinculación con la Sociedad",null,"Dirección de Tecnologías de Información",null,"Dirección de Administración y Finanzas",null,"Dirección de Comunicación Social",null,"Oficina de Información Pública"]
[null,"Folio","Días","Folio","Días","Folio","Días","Folio","Días","Folio","Días","Folio","Días","Folio","Días","Folio","Días","Folio","Días","Folio","Días","Folio","Días","Folio","Días"]
[1,null,null,"3100000021916",5,"3100000023016",4,"3100000023216",5,null,null,null,null,null,null,"3100000023616",3,null,null,"3100000008216",5,null,null,"3100000146215",0]
[{"$f":"SUM(A7+1)","v":2},null,null,"3100000022916",5,null,null,"3100000057616",5,null,null,null,null,null,null,null,null,null,null,"3100000008316",5,null,null,"3100000146315",0]
[{"$f":"SUM(A8+1)","v":3},null,null,null,null,null,null,"3100000057716",5,null,null,null,null,null,null,null,null,null,null,"3100000008416",5,null,null,"3100000146715",0]
[4,null,null,null,null,null,null,null,null,null,null,null,null,null,null,null,null,null,null,"3100000008516",5,null,null,"3100000146815",0]
[5,null,null,null,null,null,null,null,null,null,null,null,null,null,null,null,null,null,null,"3100000008616",5,null,null,"3100000146915",0]
[6,null,null,null,null,null,null,null,null,null,null,null,null,null,null,null,null,null,null,"3100000008716",5,null,null,"3100000147015",0]
[7,null,null,null,null,null,null,null,null,null,null,null,null,null,null,null,null,null,null,"3100000008816",5,null,null,"3100000000116",0]
[8,null,null,null,null,null,null,null,null,null,null,null,null,null,null,null,null,null,null,"3100000008916",5,null,null,"3100000000316",0]
[9,null,null,null,null,null,null,null,null,null,null,null,null,null,null,null,null,null,null,"3100000009016",5,null,null,"3100000000516",0]
[10,null,null,null,null,null,null,null,null,null,null,null,null,null,null,null,null,null,null,"3100000009116",5,null,null,"3100000000616",0]
[11,null,null,null,null,null,null,null,null,null,null,null,null,null,null,null,null,null,null,"3100000009216",5,null,null,"3100000000716",0]
[12,null,null,null,null,null,null,null,null,null,null,null,null,null,null,null,null,null,null,"3100000009316",5,null,null,"3100000000816",0]
[13,null,null,null,null,null,null,null,null,null,null,null,null,null,null,null,null,null,null,"3100000009416",5,null,null,"3100000000916",0]
[14,null,null,null,null,null,null,null,null,null,null,null,null,null,null,null,null,null,null,"3100000009516",5,null,null,"3100000001016",0]
[15,null,null,null,null,null,null,null,null,null,null,null,null,null,null,null,null,null,null,"3100000009616",5,null,null,"3100000001316",0]
[16,null,null,null,null,null,null,null,null,null,null,null,null,null,null,null,null,null,null,"3100000009716",5,null,null,"3100000004816",0]
[17,null,null,null,null,null,null,null,null,null,null,null,null,null,null,null,null,null,null,"3100000015816",2,null,null,"3100000005116",0]
[18,null,null,null,null,null,null,null,null,null,null,null,null,null,null,null,null,null,null,"3100000021816",3,null,null,"3100000005216",0]
[19,null,null,null,null,null,null,null,null,null,null,null,null,null,null,null,null,null,null,"3100000022016",3,null,null,"3100000005316",0]
[20,null,null,null,null,null,null,null,null,null,null,null,null,null,null,null,null,null,null,"3100000022116",5,null,null,"3100000005516",0]
[21,null,null,null,null,null,null,null,null,null,null,null,null,null,null,null,null,null,null,"3100000022216",4,null,null,"3100000006316",0]
[22,null,null,null,null,null,null,null,null,null,null,null,null,null,null,null,null,null,null,"3100000022316",5,null,null,"3100000006816",0]
[23,null,null,null,null,null,null,null,null,null,null,null,null,null,null,null,null,null,null,"3100000022416",5,null,null,"3100000006916",0]
[24,null,null,null,null,null,null,null,null,null,null,null,null,null,null,null,null,null,null,"3100000022616",2,null,null,"3100000007316",0]
[25,null,null,null,null,null,null,null,null,null,null,null,null,null,null,null,null,null,null,"3100000022816",5,null,null,"3100000007416",0]
[26,null,null,null,null,null,null,null,null,null,null,null,null,null,null,null,null,null,null,"3100000023116",5,null,null,"3100000007516",0]
[27,null,null,null,null,null,null,null,null,null,null,null,null,null,null,null,null,null,null,"3100000023316",5,null,null,"3100000007716",0]
[28,null,null,null,null,null,null,null,null,null,null,null,null,null,null,null,null,null,null,"3100000023816",5,null,null,"3100000007816",0]
[29,null,null,null,null,null,null,null,null,null,null,null,null,null,null,null,null,null,null,"3100000023916",5,null,null,"3100000008116",0]
[30,null,null,null,null,null,null,null,null,null,null,null,null,null,null,null,null,null,null,"3100000024016",5,null,null,"3100000010016",0]
[31,null,null,null,null,null,null,null,null,null,null,null,null,null,null,null,null,null,null,"3100000024116",5,null,null,"3100000010116",0]
[32,null,null,null,null,null,null,null,null,null,null,null,null,null,null,null,null,null,null,"3100000024216",5,null,null,"3100000010616",0]
[33,null,null,null,null,null,null,null,null,null,null,null,null,null,null,null,null,null,null,"3100000048816",5,null,null,"3100000010816",0]
[34,null,null,null,null,null,null,null,null,null,null,null,null,null,null,null,null,null,null,"3100000048916",5,null,null,"3100000012016",0]
[35,null,null,null,null,null,null,null,null,null,null,null,null,null,null,null,null,null,null,null,null,null,null,"3100000012316",0]
[36,null,null,null,null,null,null,null,null,null,null,null,null,null,null,null,null,null,null,null,null,null,null,"3100000012416",0]
[37,null,null,null,null,null,null,null,null,null,null,null,null,null,null,null,null,null,null,null,null,null,null,"3100000012516",0]
[38,null,null,null,null,null,null,null,null,null,null,null,null,null,null,null,null,null,null,null,null,null,null,"3100000012616",0]
[39,null,null,null,null,null,null,null,null,null,null,null,null,null,null,null,null,null,null,null,null,null,null,"3100000012716",0]
[40,null,null,null,null,null,null,null,null,null,null,null,null,null,null,null,null,null,null,null,null,null,null,"3100000012816",0]
[41,null,null,null,null,null,null,null,null,null,null,null,null,null,null,null,null,null,null,null,null,null,null,"3100000012916",0]
[42,null,null,null,null,null,null,null,null,null,null,null,null,null,null,null,null,null,null,null,null,null,null,"3100000013016",0]
[43,null,null,null,null,null,null,null,null,null,null,null,null,null,null,null,null,null,null,null,null,null,null,"3100000013116",0]
[44,null,null,null,null,null,null,null,null,null,null,null,null,null,null,null,null,null,null,null,null,null,null,"3100000013216",0]
[45,null,null,null,null,null,null,null,null,null,null,null,null,null,null,null,null,null,null,null,null,null,null,"3100000013516",0]
[46,null,null,null,null,null,null,null,null,null,null,null,null,null,null,null,null,null,null,null,null,null,null,"3100000013616",0]
[47,null,null,null,null,null,null,null,null,null,null,null,null,null,null,null,null,null,null,null,null,null,null,"3100000013716",0]
[48,null,null,null,null,null,null,null,null,null,null,null,null,null,null,null,null,null,null,null,null,null,null,"3100000013816",0]
[49,null,null,null,null,null,null,null,null,null,null,null,null,null,null,null,null,null,null,null,null,null,null,"3100000014616",0]
[50,null,null,null,null,null,null,null,null,null,null,null,null,null,null,null,null,null,null,null,null,null,null,"3100000015016",0]
[51,null,null,null,null,null,null,null,null,null,null,null,null,null,null,null,null,null,null,null,null,null,null,"3100000016316",0]
[52,null,null,null,null,null,null,null,null,null,null,null,null,null,null,null,null,null,null,null,null,null,null,"3100000016416",0]
[53,null,null,null,null,null,null,null,null,null,null,null,null,null,null,null,null,null,null,null,null,null,null,"3100000017416",0]
[54,null,null,null,null,null,null,null,null,null,null,null,null,null,null,null,null,null,null,null,null,null,null,"3100000017516",0]
[55,null,null,null,null,null,null,null,null,null,null,null,null,null,null,null,null,null,null,null,null,null,null,"3100000017616",0]
[56,null,null,null,null,null,null,null,null,null,null,null,null,null,null,null,null,null,null,null,null,null,null,"3100000017816",0]
[57,null,null,null,null,null,null,null,null,null,null,null,null,null,null,null,null,null,null,null,null,null,null,"3100000018016",0]
[58,null,null,null,null,null,null,null,null,null,null,null,null,null,null,null,null,null,null,null,null,null,null,"3100000018116",0]
[59,null,null,null,null,null,null,null,null,null,null,null,null,null,null,null,null,null,null,null,null,null,null,"3100000018216",0]
[60,null,null,null,null,null,null,null,null,null,null,null,null,null,null,null,null,null,null,null,null,null,null,"3100000018416",0]
[61,null,null,null,null,null,null,null,null,null,null,null,null,null,null,null,null,null,null,null,null,null,null,"3100000018516",0]
[62,null,null,null,null,null,null,null,null,null,null,null,null,null,null,null,null,null,null,null,null,null,null,"3100000018616",0]
[63,null,null,null,null,null,null,null,null,null,null,null,null,null,null,null,null,null,null,null,null,null,null,"3100000018716",0]
[64,null,null,null,null,null,null,null,null,null,null,null,null,null,null,null,null,null,null,null,null,null,null,"3100000018916",0]
[65,null,null,null,null,null,null,null,null,null,null,null,null,null,null,null,null,null,null,null,null,null,null,"3100000019116",0]
[66,null,null,null,null,null,null,null,null,null,null,null,null,null,null,null,null,null,null,null,null,null,null,"3100000019216",0]
[{"$f":"SUM(A72+1)","v":67},null,null,null,null,null,null,null,null,null,null,null,null,null,null,null,null,null,null,null,null,null,null,"3100000019316",0]
[68,null,null,null,null,null,null,null,null,null,null,null,null,null,null,null,null,null,null,null,null,null,null,"3100000019416",0]
[69,null,null,null,null,null,null,null,null,null,null,null,null,null,null,null,null,null,null,null,null,null,null,"3100000019716",0]
[70,null,null,null,null,null,null,null,null,null,null,null,null,null,null,null,null,null,null,null,null,null,null,"3100000020216",0]
[71,null,null,null,null,null,null,null,null,null,null,null,null,null,null,null,null,null,null,null,null,null,null,"3100000020316",0]
[72,null,null,null,null,null,null,null,null,null,null,null,null,null,null,null,null,null,null,null,null,null,null,"3100000020416",0]
[73,null,null,null,null,null,null,null,null,null,null,null,null,null,null,null,null,null,null,null,null,null,null,"3100000020516",0]
[74,null,null,null,null,null,null,null,null,null,null,null,null,null,null,null,null,null,null,null,null,null,null,"3100000020616",0]
[75,null,null,null,null,null,null,null,null,null,null,null,null,null,null,null,null,null,null,null,null,null,null,"3100000020716",0]
[76,null,null,null,null,null,null,null,null,null,null,null,null,null,null,null,null,null,null,null,null,null,null,"3100000020816",0]
[77,null,null,null,null,null,null,null,null,null,null,null,null,null,null,null,null,null,null,null,null,null,null,"3100000020916",0]
[78,null,null,null,null,null,null,null,null,null,null,null,null,null,null,null,null,null,null,null,null,null,null,"3100000021016",0]
[79,null,null,null,null,null,null,null,null,null,null,null,null,null,null,null,null,null,null,null,null,null,null,"3100000021116",0]
[80,null,null,null,null,null,null,null,null,null,null,null,null,null,null,null,null,null,null,null,null,null,null,"3100000021216",0]
[81,null,null,null,null,null,null,null,null,null,null,null,null,null,null,null,null,null,null,null,null,null,null,"3100000021316",0]
[82,null,null,null,null,null,null,null,null,null,null,null,null,null,null,null,null,null,null,null,null,null,null,"3100000021416",0]
[83,null,null,null,null,null,null,null,null,null,null,null,null,null,null,null,null,null,null,null,null,null,null,"3100000021516",0]
[84,null,null,null,null,null,null,null,null,null,null,null,null,null,null,null,null,null,null,null,null,null,null,"3100000024416",0]
[85,null,null,null,null,null,null,null,null,null,null,null,null,null,null,null,null,null,null,null,null,null,null,"3100000024516",0]
[86,null,null,null,null,null,null,null,null,null,null,null,null,null,null,null,null,null,null,null,null,null,null,"3100000024616",0]
[87,null,null,null,null,null,null,null,null,null,null,null,null,null,null,null,null,null,null,null,null,null,null,"3100000024816",0]
[88,null,null,null,null,null,null,null,null,null,null,null,null,null,null,null,null,null,null,null,null,null,null,"3100000025216",0]
[89,null,null,null,null,null,null,null,null,null,null,null,null,null,null,null,null,null,null,null,null,null,null,"3100000025416",0]
[90,null,null,null,null,null,null,null,null,null,null,null,null,null,null,null,null,null,null,null,null,null,null,"3100000025516",0]
[91,null,null,null,null,null,null,null,null,null,null,null,null,null,null,null,null,null,null,null,null,null,null,"3100000025716",0]
[92,null,null,null,null,null,null,null,null,null,null,null,null,null,null,null,null,null,null,null,null,null,null,"3100000025816",0]
[93,null,null,null,null,null,null,null,null,null,null,null,null,null,null,null,null,null,null,null,null,null,null,"3100000026216",0]
[94,null,null,null,null,null,null,null,null,null,null,null,null,null,null,null,null,null,null,null,null,null,null,"3100000026316",0]
[95,null,null,null,null,null,null,null,null,null,null,null,null,null,null,null,null,null,null,null,null,null,null,"3100000026916",0]
[96,null,null,null,null,null,null,null,null,null,null,null,null,null,null,null,null,null,null,null,null,null,null,"3100000027016",0]
[97,null,null,null,null,null,null,null,null,null,null,null,null,null,null,null,null,null,null,null,null,null,null,"3100000027216",0]
[98,null,null,null,null,null,null,null,null,null,null,null,null,null,null,null,null,null,null,null,null,null,null,"3100000027816",0]
[99,null,null,null,null,null,null,null,null,null,null,null,null,null,null,null,null,null,null,null,null,null,null,"3100000027916",0]
[100,null,null,null,null,null,null,null,null,null,null,null,null,null,null,null,null,null,null,null,null,null,null,"3100000028316",0]
[101,null,null,null,null,null,null,null,null,null,null,null,null,null,null,null,null,null,null,null,null,null,null,"3100000028916",0]
[102,null,null,null,null,null,null,null,null,null,null,null,null,null,null,null,null,null,null,null,null,null,null,"3100000029216",0]
[103,null,null,null,null,null,null,null,null,null,null,null,null,null,null,null,null,null,null,null,null,null,null,"3100000029516",0]
[104,null,null,null,null,null,null,null,null,null,null,null,null,null,null,null,null,null,null,null,null,null,null,"3100000029616",0]
[105,null,null,null,null,null,null,null,null,null,null,null,null,null,null,null,null,null,null,null,null,null,null,"3100000029816",0]
[106,null,null,null,null,null,null,null,null,null,null,null,null,null,null,null,null,null,null,null,null,null,null,"3100000030316",0]
[107,null,null,null,null,null,null,null,null,null,null,null,null,null,null,null,null,null,null,null,null,null,null,"3100000030516",0]
[108,null,null,null,null,null,null,null,null,null,null,null,null,null,null,null,null,null,null,null,null,null,null,"3100000031016",0]
[109,null,null,null,null,null,null,null,null,null,null,null,null,null,null,null,null,null,null,null,null,null,null,"3100000031216",0]
[110,null,null,null,null,null,null,null,null,null,null,null,null,null,null,null,null,null,null,null,null,null,null,"3100000031316",0]
[111,null,null,null,null,null,null,null,null,null,null,null,null,null,null,null,null,null,null,null,null,null,null,"3100000031416",0]
[112,null,null,null,null,null,null,null,null,null,null,null,null,null,null,null,null,null,null,null,null,null,null,"3100000031516",0]
[113,null,null,null,null,null,null,null,null,null,null,null,null,null,null,null,null,null,null,null,null,null,null,"3100000031716",0]
[114,null,null,null,null,null,null,null,null,null,null,null,null,null,null,null,null,null,null,null,null,null,null,"3100000031816",0]
[115,null,null,null,null,null,null,null,null,null,null,null,null,null,null,null,null,null,null,null,null,null,null,"3100000032116",2]
[116,null,null,null,null,null,null,null,null,null,null,null,null,null,null,null,null,null,null,null,null,null,null,"3100000032216",0]
[117,null,null,null,null,null,null,null,null,null,null,null,null,null,null,null,null,null,null,null,null,null,null,"3100000032316",0]
[118,null,null,null,null,null,null,null,null,null,null,null,null,null,null,null,null,null,null,null,null,null,null,"3100000032416",0]
[119,null,null,null,null,null,null,null,null,null,null,null,null,null,null,null,null,null,null,null,null,null,null,"3100000032516",0]
[120,null,null,null,null,null,null,null,null,null,null,null,null,null,null,null,null,null,null,null,null,null,null,"3100000032616",0]
[121,null,null,null,null,null,null,null,null,null,null,null,null,null,null,null,null,null,null,null,null,null,null,"3100000033316",0]
[122,null,null,null,null,null,null,null,null,null,null,null,null,null,null,null,null,null,null,null,null,null,null,"3100000033416",0]
[123,null,null,null,null,null,null,null,null,null,null,null,null,null,null,null,null,null,null,null,null,null,null,"3100000034416",0]
[124,null,null,null,null,null,null,null,null,null,null,null,null,null,null,null,null,null,null,null,null,null,null,"3100000034516",0]
[125,null,null,null,null,null,null,null,null,null,null,null,null,null,null,null,null,null,null,null,null,null,null,"3100000034916",1]
[126,null,null,null,null,null,null,null,null,null,null,null,null,null,null,null,null,null,null,null,null,null,null,"3100000035116",0]
[127,null,null,null,null,null,null,null,null,null,null,null,null,null,null,null,null,null,null,null,null,null,null,"3100000035716",0]
[128,null,null,null,null,null,null,null,null,null,null,null,null,null,null,null,null,null,null,null,null,null,null,"3100000037216",0]
[129,null,null,null,null,null,null,null,null,null,null,null,null,null,null,null,null,null,null,null,null,null,null,"3100000037416",0]
[{"$f":"SUM(A135+1)","v":130},null,null,null,null,null,null,null,null,null,null,null,null,null,null,null,null,null,null,null,null,null,null,"3100000037516",1]
[{"$f":"SUM(A136+1)","v":131},null,null,null,null,null,null,null,null,null,null,null,null,null,null,null,null,null,null,null,null,null,null,"3100000037816",0]
[{"$f":"SUM(A137+1)","v":132},null,null,null,null,null,null,null,null,null,null,null,null,null,null,null,null,null,null,null,null,null,null,"3100000037916",0]
[133,null,null,null,null,null,null,null,null,null,null,null,null,null,null,null,null,null,null,null,null,null,null,"3100000038516",0]
[134,null,null,null,null,null,null,null,null,null,null,null,null,null,null,null,null,null,null,null,null,null,null,"3100000038616",0]
[135,null,null,null,null,null,null,null,null,null,null,null,null,null,null,null,null,null,null,null,null,null,null,"3100000038716",4]
[136,null,null,null,null,null,null,null,null,null,null,null,null,null,null,null,null,null,null,null,null,null,null,"3100000038916",0]
[137,null,null,null,null,null,null,null,null,null,null,null,null,null,null,null,null,null,null,null,null,null,null,"3100000039116",0]
[138,null,null,null,null,null,null,null,null,null,null,null,null,null,null,null,null,null,null,null,null,null,null,"3100000039416",0]
[139,null,null,null,null,null,null,null,null,null,null,null,null,null,null,null,null,null,null,null,null,null,null,"3100000039516",0]
[140,null,null,null,null,null,null,null,null,null,null,null,null,null,null,null,null,null,null,null,null,null,null,"3100000039616",0]
[141,null,null,null,null,null,null,null,null,null,null,null,null,null,null,null,null,null,null,null,null,null,null,"3100000039816",0]
[142,null,null,null,null,null,null,null,null,null,null,null,null,null,null,null,null,null,null,null,null,null,null,"3100000039916",0]
[143,null,null,null,null,null,null,null,null,null,null,null,null,null,null,null,null,null,null,null,null,null,null,"3100000040016",0]
[144,null,null,null,null,null,null,null,null,null,null,null,null,null,null,null,null,null,null,null,null,null,null,"3100000040116",0]
[145,null,null,null,null,null,null,null,null,null,null,null,null,null,null,null,null,null,null,null,null,null,null,"3100000040216",0]
[{"$f":"SUM(A151+1)","v":146},null,null,null,null,null,null,null,null,null,null,null,null,null,null,null,null,null,null,null,null,null,null,"3100000040316",0]
[{"$f":"SUM(A152+1)","v":147},null,null,null,null,null,null,null,null,null,null,null,null,null,null,null,null,null,null,null,null,null,null,"3100000040416",0]
[{"$f":"SUM(A153+1)","v":148},null,null,null,null,null,null,null,null,null,null,null,null,null,null,null,null,null,null,null,null,null,null,"3100000040716",0]
[149,null,null,null,null,null,null,null,null,null,null,null,null,null,null,null,null,null,null,null,null,null,null,"3100000040816",0]
[150,null,null,null,null,null,null,null,null,null,null,null,null,null,null,null,null,null,null,null,null,null,null,"3100000041016",0]
[151,null,null,null,null,null,null,null,null,null,null,null,null,null,null,null,null,null,null,null,null,null,null,"3100000041516",0]
[152,null,null,null,null,null,null,null,null,null,null,null,null,null,null,null,null,null,null,null,null,null,null,"3100000041616",0]
[153,null,null,null,null,null,null,null,null,null,null,null,null,null,null,null,null,null,null,null,null,null,null,"3100000041716",0]
[154,null,null,null,null,null,null,null,null,null,null,null,null,null,null,null,null,null,null,null,null,null,null,"3100000041816",0]
[155,null,null,null,null,null,null,null,null,null,null,null,null,null,null,null,null,null,null,null,null,null,null,"3100000041916",0]
[156,null,null,null,null,null,null,null,null,null,null,null,null,null,null,null,null,null,null,null,null,null,null,"3100000042016",0]
[157,null,null,null,null,null,null,null,null,null,null,null,null,null,null,null,null,null,null,null,null,null,null,"3100000042216",0]
[158,null,null,null,null,null,null,null,null,null,null,null,null,null,null,null,null,null,null,null,null,null,null,"3100000042316",0]
[159,null,null,null,null,null,null,null,null,null,null,null,null,null,null,null,null,null,null,null,null,null,null,"3100000042416",0]
[160,null,null,null,null,null,null,null,null,null,null,null,null,null,null,null,null,null,null,null,null,null,null,"3100000042516",0]
[161,null,null,null,null,null,null,null,null,null,null,null,null,null,null,null,null,null,null,null,null,null,null,"3100000042916",0]
[162,null,null,null,null,null,null,null,null,null,null,null,null,null,null,null,null,null,null,null,null,null,null,"3100000043016",0]
[163,null,null,null,null,null,null,null,null,null,null,null,null,null,null,null,null,null,null,null,null,null,null,"3100000043116",0]
[164,null,null,null,null,null,null,null,null,null,null,null,null,null,null,null,null,null,null,null,null,null,null,"´3100000043316",0]
[165,null,null,null,null,null,null,null,null,null,null,null,null,null,null,null,null,null,null,null,null,null,null,"3100000044516",0]
[166,null,null,null,null,null,null,null,null,null,null,null,null,null,null,null,null,null,null,null,null,null,null,"3100000044616",0]
[167,null,null,null,null,null,null,null,null,null,null,null,null,null,null,null,null,null,null,null,null,null,null,"3100000044716",0]
[168,null,null,null,null,null,null,null,null,null,null,null,null,null,null,null,null,null,null,null,null,null,null,"3100000044816",0]
[169,null,null,null,null,null,null,null,null,null,null,null,null,null,null,null,null,null,null,null,null,null,null,"3100000044916",0]
[170,null,null,null,null,null,null,null,null,null,null,null,null,null,null,null,null,null,null,null,null,null,null,"3100000046116",0]
[171,null,null,null,null,null,null,null,null,null,null,null,null,null,null,null,null,null,null,null,null,null,null,"3100000046316",0]
[172,null,null,null,null,null,null,null,null,null,null,null,null,null,null,null,null,null,null,null,null,null,null,"3100000046516",0]
[173,null,null,null,null,null,null,null,null,null,null,null,null,null,null,null,null,null,null,null,null,null,null,"3100000047016",0]
[174,null,null,null,null,null,null,null,null,null,null,null,null,null,null,null,null,null,null,null,null,null,null,"3100000047216",0]
[175,null,null,null,null,null,null,null,null,null,null,null,null,null,null,null,null,null,null,null,null,null,null,"3100000047316",0]
[176,null,null,null,null,null,null,null,null,null,null,null,null,null,null,null,null,null,null,null,null,null,null,"3100000047716",0]
[177,null,null,null,null,null,null,null,null,null,null,null,null,null,null,null,null,null,null,null,null,null,null,"3100000048016",0]
[178,null,null,null,null,null,null,null,null,null,null,null,null,null,null,null,null,null,null,null,null,null,null,"3100000049316",0]
[179,null,null,null,null,null,null,null,null,null,null,null,null,null,null,null,null,null,null,null,null,null,null,"3100000049516",0]
[180,null,null,null,null,null,null,null,null,null,null,null,null,null,null,null,null,null,null,null,null,null,null,"3100000049616",0]
[181,null,null,null,null,null,null,null,null,null,null,null,null,null,null,null,null,null,null,null,null,null,null,"3100000050116",0]
[182,null,null,null,null,null,null,null,null,null,null,null,null,null,null,null,null,null,null,null,null,null,null,"3100000050316",0]
[183,null,null,null,null,null,null,null,null,null,null,null,null,null,null,null,null,null,null,null,null,null,null,"3100000050416",0]
[184,null,null,null,null,null,null,null,null,null,null,null,null,null,null,null,null,null,null,null,null,null,null,"3100000050716",0]
[185,null,null,null,null,null,null,null,null,null,null,null,null,null,null,null,null,null,null,null,null,null,null,"3100000050816",0]
[186,null,null,null,null,null,null,null,null,null,null,null,null,null,null,null,null,null,null,null,null,null,null,"3100000050916",0]
[187,null,null,null,null,null,null,null,null,null,null,null,null,null,null,null,null,null,null,null,null,null,null,"3100000051116",0]
[188,null,null,null,null,null,null,null,null,null,null,null,null,null,null,null,null,null,null,null,null,null,null,"3100000051316",0]
[189,null,null,null,null,null,null,null,null,null,null,null,null,null,null,null,null,null,null,null,null,null,null,"3100000051516",1]
[190,null,null,null,null,null,null,null,null,null,null,null,null,null,null,null,null,null,null,null,null,null,null,"3100000051716",0]
[191,null,null,null,null,null,null,null,null,null,null,null,null,null,null,null,null,null,null,null,null,null,null,"3100000051916",0]
[192,null,null,null,null,null,null,null,null,null,null,null,null,null,null,null,null,null,null,null,null,null,null,"3100000052016",0]
[193,null,null,null,null,null,null,null,null,null,null,null,null,null,null,null,null,null,null,null,null,null,null,"3100000052616",0]
[194,null,null,null,null,null,null,null,null,null,null,null,null,null,null,null,null,null,null,null,null,null,null,"3100000052716",0]
[195,null,null,null,null,null,null,null,null,null,null,null,null,null,null,null,null,null,null,null,null,null,null,"3100000053016",0]
[196,null,null,null,null,null,null,null,null,null,null,null,null,null,null,null,null,null,null,null,null,null,null,"3100000053216",0]
[197,null,null,null,null,null,null,null,null,null,null,null,null,null,null,null,null,null,null,null,null,null,null,"3100000054216",0]
[198,null,null,null,null,null,null,null,null,null,null,null,null,null,null,null,null,null,null,null,null,null,null,"3100000054416",0]
[199,null,null,null,null,null,null,null,null,null,null,null,null,null,null,null,null,null,null,null,null,null,null,"3100000054716",0]
[200,null,null,null,null,null,null,null,null,null,null,null,null,null,null,null,null,null,null,null,null,null,null,"3100000054816",0]
[201,null,null,null,null,null,null,null,null,null,null,null,null,null,null,null,null,null,null,null,null,null,null,"3100000054916",0]
[202,null,null,null,null,null,null,null,null,null,null,null,null,null,null,null,null,null,null,null,null,null,null,"3100000055016",1]
[203,null,null,null,null,null,null,null,null,null,null,null,null,null,null,null,null,null,null,null,null,null,null,"3100000057316",0]
[204,null,null,null,null,null,null,null,null,null,null,null,null,null,null,null,null,null,null,null,null,null,null,"3100000057916",0]
[205,null,null,null,null,null,null,null,null,null,null,null,null,null,null,null,null,null,null,null,null,null,null,"3100000058016",0]
[206,null,null,null,null,null,null,null,null,null,null,null,null,null,null,null,null,null,null,null,null,null,null,"3100000058116",0]
[207,null,null,null,null,null,null,null,null,null,null,null,null,null,null,null,null,null,null,null,null,null,null,"3100000058216",0]
[208,null,null,null,null,null,null,null,null,null,null,null,null,null,null,null,null,null,null,null,null,null,null,"3100000058816",0]
[209,null,null,null,null,null,null,null,null,null,null,null,null,null,null,null,null,null,null,null,null,null,null,"3100000059016",0]
[210,null,null,null,null,null,null,null,null,null,null,null,null,null,null,null,null,null,null,null,null,null,null,"3100000059216",0]
[211,null,null,null,null,null,null,null,null,null,null,null,null,null,null,null,null,null,null,null,null,null,null,"3100000059516",0]
[{"$f":"SUM(A217+1)","v":212},null,null,null,null,null,null,null,null,null,null,null,null,null,null,null,null,null,null,null,null,null,null,"3100000059616",0]
[213,null,null,null,null,null,null,null,null,null,null,null,null,null,null,null,null,null,null,null,null,null,null,"3100000060316",0]
[214,null,null,null,null,null,null,null,null,null,null,null,null,null,null,null,null,null,null,null,null,null,null,"3100000060516",1]
[215,null,null,null,null,null,null,null,null,null,null,null,null,null,null,null,null,null,null,null,null,null,null,"3100000060616",0]
[216,null,null,null,null,null,null,null,null,null,null,null,null,null,null,null,null,null,null,null,null,null,null,"3100000060716",0]
[217,null,null,null,null,null,null,null,null,null,null,null,null,null,null,null,null,null,null,null,null,null,null,"3100000061116",0]
[218,null,null,null,null,null,null,null,null,null,null,null,null,null,null,null,null,null,null,null,null,null,null,"3100000061516",0]
[219,null,null,null,null,null,null,null,null,null,null,null,null,null,null,null,null,null,null,null,null,null,null,"3100000061616",0]
[220,null,null,null,null,null,null,null,null,null,null,null,null,null,null,null,null,null,null,null,null,null,null,"3100000061816",0]
[221,null,null,null,null,null,null,null,null,null,null,null,null,null,null,null,null,null,null,null,null,null,null,"3100000061916",0]
[222,null,null,null,null,null,null,null,null,null,null,null,null,null,null,null,null,null,null,null,null,null,null,"3100000062016",0]
[223,null,null,null,null,null,null,null,null,null,null,null,null,null,null,null,null,null,null,null,null,null,null,"3100000062116",0]
[224,null,null,null,null,null,null,null,null,null,null,null,null,null,null,null,null,null,null,null,null,null,null,"3100000062216",0]
[225,null,null,null,null,null,null,null,null,null,null,null,null,null,null,null,null,null,null,null,null,null,null,"3100000062316",0]
[226,null,null,null,null,null,null,null,null,null,null,null,null,null,null,null,null,null,null,null,null,null,null,"3100000062416",0]
[227,null,null,null,null,null,null,null,null,null,null,null,null,null,null,null,null,null,null,null,null,null,null,"3100000062516",0]
[228,null,null,null,null,null,null,null,null,null,null,null,null,null,null,null,null,null,null,null,null,null,null,"3100000062616",0]
[229,null,null,null,null,null,null,null,null,null,null,null,null,null,null,null,null,null,null,null,null,null,null,"3100000062716",0]
[230,null,null,null,null,null,null,null,null,null,null,null,null,null,null,null,null,null,null,null,null,null,null,"3100000062916",0]
[231,null,null,null,null,null,null,null,null,null,null,null,null,null,null,null,null,null,null,null,null,null,null,"3100000063016",0]
[232,null,null,null,null,null,null,null,null,null,null,null,null,null,null,null,null,null,null,null,null,null,null,"3100000063116",0]
[233,null,null,null,null,null,null,null,null,null,null,null,null,null,null,null,null,null,null,null,null,null,null,"3100000063216",0]
[234,null,null,null,null,null,null,null,null,null,null,null,null,null,null,null,null,null,null,null,null,null,null,"3100000063316",0]
[235,null,null,null,null,null,null,null,null,null,null,null,null,null,null,null,null,null,null,null,null,null,null,"3100000063416",3]
[236,null,null,null,null,null,null,null,null,null,null,null,null,null,null,null,null,null,null,null,null,null,null,"3100000063516",1]
[237,null,null,null,null,null,null,null,null,null,null,null,null,null,null,null,null,null,null,null,null,null,null,"3100000063916",0]
[238,null,null,null,null,null,null,null,null,null,null,null,null,null,null,null,null,null,null,null,null,null,null,"3100000064416",0]
[239,null,null,null,null,null,null,null,null,null,null,null,null,null,null,null,null,null,null,null,null,null,null,"3100000064516",0]
[240,null,null,null,null,null,null,null,null,null,null,null,null,null,null,null,null,null,null,null,null,null,null,"3100000064616",0]
[241,null,null,null,null,null,null,null,null,null,null,null,null,null,null,null,null,null,null,null,null,null,null,"3100000064716",0]
[242,null,null,null,null,null,null,null,null,null,null,null,null,null,null,null,null,null,null,null,null,null,null,"3100000064916",0]
[243,null,null,null,null,null,null,null,null,null,null,null,null,null,null,null,null,null,null,null,null,null,null,"3100000065116",1]
[244,null,null,null,null,null,null,null,null,null,null,null,null,null,null,null,null,null,null,null,null,null,null,"3100000065216",1]
[245,null,null,null,null,null,null,null,null,null,null,null,null,null,null,null,null,null,null,null,null,null,null,"3100000065316",0]
[246,null,null,null,null,null,null,null,null,null,null,null,null,null,null,null,null,null,null,null,null,null,null,"3100000065616",0]
[247,null,null,null,null,null,null,null,null,null,null,null,null,null,null,null,null,null,null,null,null,null,null,"3100000066916",0]
[248,null,null,null,null,null,null,null,null,null,null,null,null,null,null,null,null,null,null,null,null,null,null,"3100000068416",0]
[249,null,null,null,null,null,null,null,null,null,null,null,null,null,null,null,null,null,null,null,null,null,null,"3100000068616",0]
[250,null,null,null,null,null,null,null,null,null,null,null,null,null,null,null,null,null,null,null,null,null,null,"3100000068716",0]
[251,null,null,null,null,null,null,null,null,null,null,null,null,null,null,null,null,null,null,null,null,null,null,"3100000068816",0]
[252,null,null,null,null,null,null,null,null,null,null,null,null,null,null,null,null,null,null,null,null,null,null,"3100000068916",0]
[253,null,null,null,null,null,null,null,null,null,null,null,null,null,null,null,null,null,null,null,null,null,null,"3100000069016",0]
[254,null,null,null,null,null,null,null,null,null,null,null,null,null,null,null,null,null,null,null,null,null,null,"3100000069116",0]
[255,null,null,null,null,null,null,null,null,null,null,null,null,null,null,null,null,null,null,null,null,null,null,"3100000069516",0]
[256,null,null,null,null,null,null,null,null,null,null,null,null,null,null,null,null,null,null,null,null,null,null,"3100000069716",0]
[257,null,null,null,null,null,null,null,null,null,null,null,null,null,null,null,null,null,null,null,null,null,null,"3100000069916",0]
[258,null,null,null,null,null,null,null,null,null,null,null,null,null,null,null,null,null,null,null,null,null,null,"3100000070116",0]
[259,null,null,null,null,null,null,null,null,null,null,null,null,null,null,null,null,null,null,null,null,null,null,"3100000070216",0]
[260,null,null,null,null,null,null,null,null,null,null,null,null,null,null,null,null,null,null,null,null,null,null,"3100000070316",0]
[261,null,null,null,null,null,null,null,null,null,null,null,null,null,null,null,null,null,null,null,null,null,null,"3100000070616",0]
[262,null,null,null,null,null,null,null,null,null,null,null,null,null,null,null,null,null,null,null,null,null,null,"3100000070716",0]
[263,null,null,null,null,null,null,null,null,null,null,null,null,null,null,null,null,null,null,null,null,null,null,"3100000071216",0]
[264,null,null,null,null,null,null,null,null,null,null,null,null,null,null,null,null,null,null,null,null,null,null,"3100000071416",0]
[265,null,null,null,null,null,null,null,null,null,null,null,null,null,null,null,null,null,null,null,null,null,null,"3100000072216",0]
[266,null,null,null,null,null,null,null,null,null,null,null,null,null,null,null,null,null,null,null,null,null,null,"3100000072416",0]
[267,null,null,null,null,null,null,null,null,null,null,null,null,null,null,null,null,null,null,null,null,null,null,"3100000072916",0]
[268,null,null,null,null,null,null,null,null,null,null,null,null,null,null,null,null,null,null,null,null,null,null,"3100000073016",0]
[269,null,null,null,null,null,null,null,null,null,null,null,null,null,null,null,null,null,null,null,null,null,null,"3100000073216",0]
[270,null,null,null,null,null,null,null,null,null,null,null,null,null,null,null,null,null,null,null,null,null,null,"3100000073316",0]
[271,null,null,null,null,null,null,null,null,null,null,null,null,null,null,null,null,null,null,null,null,null,null,"3100000073416",0]
[272,null,null,null,null,null,null,null,null,null,null,null,null,null,null,null,null,null,null,null,null,null,null,"3100000073516",0]
[273,null,null,null,null,null,null,null,null,null,null,null,null,null,null,null,null,null,null,null,null,null,null,"3100000073616",0]
[274,null,null,null,null,null,null,null,null,null,null,null,null,null,null,null,null,null,null,null,null,null,null,"3100000073816",0]
[275,null,null,null,null,null,null,null,null,null,null,null,null,null,null,null,null,null,null,null,null,null,null,"3100000073916",0]
[{"$f":"SUM(A281+1)","v":276},null,null,null,null,null,null,null,null,null,null,null,null,null,null,null,null,null,null,null,null,null,null,"3100000074016",0]
[277,null,null,null,null,null,null,null,null,null,null,null,null,null,null,null,null,null,null,null,null,null,null,"3100000074316",0]
[278,null,null,null,null,null,null,null,null,null,null,null,null,null,null,null,null,null,null,null,null,null,null,"3100000074416",0]
[279,null,null,null,null,null,null,null,null,null,null,null,null,null,null,null,null,null,null,null,null,null,null,"3100000074616",0]
[280,null,null,null,null,null,null,null,null,null,null,null,null,null,null,null,null,null,null,null,null,null,null,"3100000074816",0]
[281,null,null,null,null,null,null,null,null,null,null,null,null,null,null,null,null,null,null,null,null,null,null,"3100000075216",0]
[282,null,null,null,null,null,null,null,null,null,null,null,null,null,null,null,null,null,null,null,null,null,null,"3100000075316",0]
[]
[null,"PROMEDIO",{"$f":"AVERAGE(C7:C289)","v":{"$error":"#DIV/0!"}},"PROMEDIO",{"$f":"AVERAGE(E7:E289)","v":5},"PROMEDIO",{"$f":"AVERAGE(G7:G289)","v":4},"PROMEDIO",{"$f":"AVERAGE(I7:I289)","v":5},"PROMEDIO",{"$f":"AVERAGE(K7:K289)","v":{"$error":"#DIV/0!"}},"PROMEDIO",{"$f":"AVERAGE(M7:M289)","v":{"$error":"#DIV/0!"}},"PROMEDIO",{"$f":"AVERAGE(O7:O289)","v":{"$error":"#DIV/0!"}},"PROMEDIO",{"$f":"AVERAGE(Q7:Q289)","v":3},"PROMEDIO",{"$f":"AVERAGE(S7:S289)","v":{"$error":"#DIV/0!"}},"PROMEDIO",{"$f":"AVERAGE(U7:U289)","v":4.6764705882352944},"PROMEDIO",{"$f":"AVERAGE(W7:W289)","v":{"$error":"#DIV/0!"}},"PROMEDIO",{"$f":"AVERAGE(Y7:Y289)","v":6.0283687943262408E-2}]
[null,null,{"$f":"COUNT(C7:C288)","v":0},null,{"$f":"COUNT(E7:E288)","v":2},null,{"$f":"COUNT(G7:G288)","v":1},null,{"$f":"COUNT(I7:I288)","v":3},null,{"$f":"COUNT(K7:K288)","v":0},null,{"$f":"COUNT(M7:M288)","v":0},null,{"$f":"COUNT(O7:O288)","v":0},null,{"$f":"COUNT(Q7:Q288)","v":1},null,{"$f":"COUNT(S7:S288)","v":0},null,{"$f":"COUNT(U7:U288)","v":34},null,{"$f":"COUNT(W7:W288)","v":0},null,{"$f":"COUNT(Y7:Y288)","v":282},{"$f":"SUM(C291:Y291)","v":323}]

{"sheet":"5 DÍAS (2 o más UA)","index":6,"n_rows":20,"n_cols":14,"rows_kept":20,"cut":false,"hidden":true,"merged":[[8,16,8,17],[1,1,1,5],[6,1,6,13],[7,1,7,13],[8,1,9,1],[8,14,8,15]]}
[]
[]
[]
[]
[]
[]
[null,"ATENCIÓN A SOLICITUDES DE INFORMACIÓN, INFODF A MARZO 2014"]
[null,"ATENDIDAS POR \"DOS O MÁS UNIDADES ADMINISTRATIVAS\" (5 DÍAS HÁBILES)"]
[null,"Folio","Secretaría Técnica","Secretaría Ejecutiva","Contraloría","Dirección Jurídica y Desarrollo Normativo","Dirección de Capacitación y Cultura de la Transparencia","Dirección de Evaluación y Estudios","Dirección de Datos Personales","Dirección de Vinculación con la Sociedad","Dirección de Tecnologías de Información","Dirección de Administración y Finanzas","Dirección de Comunicación Social","Oficina de Información Pública"]
[null,null,"Días","Días","Días","Días","Días","Días","Días","Días","Días","Días","Días","Días"]
[]
[]
[]
[]
[]
[]
[]
[]
[]
[null,null,null,null,null,"                                                                                                                                                                                                                                                                                                                                                                                                                                                                                                                                                                                                                                                                                                                                                                                                                                                                                                                                                                                                                                                                                                                                                                                                                                                                                                                                                                                                                                                                                                                        "]

{"sheet":"5 DIAS (2 o más UA)","index":7,"n_rows":18,"n_cols":14,"rows_kept":18,"cut":false,"hidden":false,"merged":[[2,1,2,13],[3,1,3,13],[4,1,5,1],[4,14,4,15],[4,16,4,17]]}
[null,null,"FOLIOS PENDIENTES A LA FECHA DE REPORTE"]
[]
[null,"TIEMPO DE ATENCIÓN A SOLICITUDES DE INFORMACIÓN, FOLIOS AL 04 DE MAYO DE 2016"]
[null,"SIP DE 5 DÍAS ATENDIDAS POR 2 o MÁS UA"]
[null,"Folio","Secretaría Técnica","Secretaría Ejecutiva","Contraloría","Dirección Jurídica y Desarrollo Normativo","Dirección de Capacitación y Cultura de la Transparencia","Dirección de Evaluación y Estudios","Dirección de Datos Personales","Dirección de Vinculación con la Sociedad","Dirección de Tecnologías de Información","Dirección de Administración y Finanzas","Dirección de Comunicación Social","Oficina de Información Pública"]
[null,null,"Días","Días","Días","Días","Días","Días","Días","Días","Días","Días","Días","Días"]
[1,3100000015716,null,null,3,null,null,null,null,null,null,5]
[2,3100000021716,null,null,4,5]
[3,3100000023416,null,5,null,null,null,null,5,null,null,5]
[4,3100000023516,5,null,4,5,2,null,null,2]
[5,3100000023716,null,null,null,null,2,null,null,null,null,5,2]
[6,3100000048716,5,5,4,5,5,5,5,5,4,4,5]
[7]
[8]
[9]
[10]
[null,"PROMEDIO",{"$f":"AVERAGE(C7:C16)","v":5},5,3.75,5,3,5,5,3.5,4,4.75,3.5,{"$error":"#DIV/0!"}]
[null,{"$f":"COUNT(B7:B14)","v":6}]

{"sheet":"RESUMEN POR UA","index":8,"n_rows":17,"n_cols":15,"rows_kept":17,"cut":false,"hidden":true,"merged":[[0,0,0,14],[1,11,1,12],[1,13,1,14],[1,0,2,0],[1,1,1,2],[1,5,1,6],[1,9,1,10],[1,3,1,4],[1,7,1,8]]}
["TIEMPO DE ATENCIÓN A SOLICITUDES DE INFORMACIÓN POR UNIDAD ADMINISTRATIVA, FOLIOS AL 15 DE JUNIO DE 2015"]
["Unidad Administrativa","SIP de 10 días atendidas por una UA",null,"SIP de 20 días atendidas por una UA",null,"SIP de 10 días atendidas por dos o más UA",null,"SIP de 20 días atendidas por dos o más UA",null,"Solicitudes Acceso Restringido",null,"SIP de 5 días atendidas por 1 UA",null,"SIP de 5 días atendidas por 2 o más UA"]
[null,"Folios","Promedio días atención","Folios","Promedio días atención","Folios","Promedio días atención","Folios","Promedio días atención","Folios","Promedio días atención","Folios","Promedio días atención","Folios","Promedio días atención"]
["Secretaría Técnica",{"$f":"COUNT('10 DÍAS (1 UA)'!C11:C93)","v":7},{"$f":"'10 DÍAS (1 UA)'!C122","v":7.2857142857142856},{"$f":"COUNT('20 DÍAS (1 UA)'!C9:C20)","v":0},null,{"$f":"COUNT('10 DÍAS (2 o más UA)'!C7:C35)","v":11},{"$f":"'10 DÍAS (2 o más UA)'!C58","v":0},{"$f":"COUNTIF('20 DÍAS (2 o más UA)'!C7:C8, \">10\")","v":1},{"$f":"'20 DÍAS (2 o más UA)'!C34","v":13},{"$f":"CountCcolor('Solicitudes Acceso restringido'!$B$2,'Solicitudes Acceso restringido'!C9:C18)","v":0},null,{"$f":"COUNT('5 DÍAS (1 UA)'!C7:C106)","v":0},{"$f":"'5 DÍAS (1 UA)'!C290","v":{"$error":"#DIV/0!"}},{"$f":"COUNT('5 DIAS (2 o más UA)'!C7:C16)","v":2},{"$f":"'5 DIAS (2 o más UA)'!C17","v":5}]
["Secretaría Ejecutiva",{"$f":"COUNT('10 DÍAS (1 UA)'!E11:E93)","v":16},{"$f":"'10 DÍAS (1 UA)'!E122","v":8.75},{"$f":"COUNT('20 DÍAS (1 UA)'!E9:E20)","v":1},null,{"$f":"COUNT('10 DÍAS (2 o más UA)'!D7:D35)","v":2},{"$f":"'10 DÍAS (2 o más UA)'!D58","v":0},{"$f":"COUNTIF('20 DÍAS (2 o más UA)'!D7:D8, \">10\")","v":0},{"$f":"'20 DÍAS (2 o más UA)'!D34","v":{"$error":"#DIV/0!"}},{"$f":"CountCcolor('Solicitudes Acceso restringido'!$B$2,'Solicitudes Acceso restringido'!D9:D18)","v":0},null,{"$f":"COUNT('5 DÍAS (1 UA)'!E7:E106)","v":2},{"$f":"'5 DÍAS (1 UA)'!E290","v":5},{"$f":"COUNT('5 DIAS (2 o más UA)'!D7:D16)","v":2},{"$f":"'5 DIAS (2 o más UA)'!D17","v":5}]
["Contraloría",{"$f":"COUNT('10 DÍAS (1 UA)'!G11:G93)","v":6},{"$f":"'10 DÍAS (1 UA)'!G122","v":4.833333333333333},{"$f":"COUNT('20 DÍAS (1 UA)'!G9:G20)","v":0},null,{"$f":"COUNT('10 DÍAS (2 o más UA)'!E7:E35)","v":2},{"$f":"'10 DÍAS (2 o más UA)'!E58","v":3},{"$f":"COUNTIF('20 DÍAS (2 o más UA)'!E7:E8, \">10\")","v":0},null,{"$f":"CountCcolor('Solicitudes Acceso restringido'!$B$2,'Solicitudes Acceso restringido'!E9:E18)","v":0},{"$f":"'Solicitudes Acceso restringido'!E19","v":{"$error":"#DIV/0!"}},{"$f":"COUNT('5 DÍAS (1 UA)'!G7:G106)","v":1},{"$f":"'5 DÍAS (1 UA)'!G290","v":4},{"$f":"COUNT('5 DIAS (2 o más UA)'!E7:E16)","v":4},{"$f":"'5 DIAS (2 o más UA)'!E17","v":3.75}]
["DJDN",{"$f":"COUNT('10 DÍAS (1 UA)'!I11:I93)","v":60},{"$f":"'10 DÍAS (1 UA)'!I122","v":9.25},{"$f":"COUNT('20 DÍAS (1 UA)'!I9:I20)","v":5},{"$f":"'20 DÍAS (1 UA)'!I21","v":18.399999999999999},{"$f":"COUNT('10 DÍAS (2 o más UA)'!F7:F35)","v":12},{"$f":"'10 DÍAS (2 o más UA)'!F58","v":10},{"$f":"COUNTIF('20 DÍAS (2 o más UA)'!F7:F8, \">10\")","v":0},{"$f":"'20 DÍAS (2 o más UA)'!F34","v":20},{"$f":"CountCcolor('Solicitudes Acceso restringido'!$B$2,'Solicitudes Acceso restringido'!F9:F18)","v":0},{"$f":"'Solicitudes Acceso restringido'!F19","v":{"$error":"#DIV/0!"}},{"$f":"COUNT('5 DÍAS (1 UA)'!I7:I106)","v":3},{"$f":"'5 DÍAS (1 UA)'!I290","v":5},{"$f":"COUNT('5 DIAS (2 o más UA)'!F7:F16)","v":3},{"$f":"'5 DIAS (2 o más UA)'!F17","v":5}]
["DCCT",{"$f":"COUNT('10 DÍAS (1 UA)'!K11:K92)","v":6},{"$f":"'10 DÍAS (1 UA)'!K122","v":4.833333333333333},{"$f":"COUNT('20 DÍAS (1 UA)'!K9:K20)","v":0},null,{"$f":"COUNT('10 DÍAS (2 o más UA)'!G7:G35)","v":7},{"$f":"'10 DÍAS (2 o más UA)'!G58","v":0},{"$f":"COUNTIF('20 DÍAS (2 o más UA)'!G7:G8, \">10\")","v":0},null,{"$f":"CountCcolor('Solicitudes Acceso restringido'!$B$2,'Solicitudes Acceso restringido'!G9:G18)","v":0},{"$f":"'Solicitudes Acceso restringido'!G19","v":{"$error":"#DIV/0!"}},{"$f":"COUNT('5 DÍAS (1 UA)'!K7:K106)","v":0},{"$f":"'5 DÍAS (1 UA)'!K290","v":{"$error":"#DIV/0!"}},{"$f":"COUNT('5 DIAS (2 o más UA)'!G7:G16)","v":3},{"$f":"'5 DIAS (2 o más UA)'!G17","v":3}]
["DEyE",{"$f":"COUNT('10 DÍAS (1 UA)'!M11:M92)","v":40},{"$f":"'10 DÍAS (1 UA)'!M122","v":5.7750000000000004},{"$f":"COUNT('20 DÍAS (1 UA)'!M9:M20)","v":3},{"$f":"'20 DÍAS (1 UA)'!M21","v":13.333333333333334},{"$f":"COUNT('10 DÍAS (2 o más UA)'!H7:H35)","v":7},{"$f":"'10 DÍAS (2 o más UA)'!H58","v":10},{"$f":"COUNTIF('20 DÍAS (2 o más UA)'!H7:H8, \">10\")","v":0},{"$f":"'20 DÍAS (2 o más UA)'!H34","v":11},{"$f":"CountCcolor('Solicitudes Acceso restringido'!$B$2,'Solicitudes Acceso restringido'!H9:H18)","v":0},null,{"$f":"COUNT('5 DÍAS (1 UA)'!M7:M106)","v":0},{"$f":"'5 DÍAS (1 UA)'!M290","v":{"$error":"#DIV/0!"}},{"$f":"COUNT('5 DIAS (2 o más UA)'!H7:H16)","v":1},{"$f":"'5 DIAS (2 o más UA)'!H17","v":5}]
["DDP",{"$f":"COUNT('10 DÍAS (1 UA)'!O11:O92)","v":3},{"$f":"'10 DÍAS (1 UA)'!O122","v":7.333333333333333},{"$f":"COUNT('20 DÍAS (1 UA)'!O9:O20)","v":8},null,{"$f":"COUNT('10 DÍAS (2 o más UA)'!I7:I35)","v":2},{"$f":"'10 DÍAS (2 o más UA)'!I58","v":0},{"$f":"COUNTIF('20 DÍAS (2 o más UA)'!I7:I8, \">10\")","v":1},null,{"$f":"CountCcolor('Solicitudes Acceso restringido'!$B$2,'Solicitudes Acceso restringido'!I9:I18)","v":0},null,{"$f":"COUNT('5 DÍAS (1 UA)'!O7:O106)","v":0},null,{"$f":"COUNT('5 DIAS (2 o más UA)'!I7:I16)","v":2},{"$f":"'5 DIAS (2 o más UA)'!I17","v":5}]
["DVS",{"$f":"COUNT('10 DÍAS (1 UA)'!Q11:Q93)","v":5},{"$f":"'10 DÍAS (1 UA)'!Q122","v":5.4},{"$f":"COUNT('20 DÍAS (1 UA)'!Q9:Q20)","v":0},null,{"$f":"COUNT('10 DÍAS (2 o más UA)'!J7:J35)","v":4},{"$f":"'10 DÍAS (2 o más UA)'!J58","v":0},{"$f":"COUNTIF('20 DÍAS (2 o más UA)'!J7:J8, \">10\")","v":0},null,{"$f":"CountCcolor('Solicitudes Acceso restringido'!$B$2,'Solicitudes Acceso restringido'!J9:J18)","v":0},{"$f":"'Solicitudes Acceso restringido'!J19","v":{"$error":"#DIV/0!"}},{"$f":"COUNT('5 DÍAS (1 UA)'!Q7:Q106)","v":1},{"$f":"'5 DÍAS (1 UA)'!Q290","v":3},{"$f":"COUNT('5 DIAS (2 o más UA)'!J7:J16)","v":2},{"$f":"'5 DIAS (2 o más UA)'!J17","v":3.5}]
["DTI",{"$f":"COUNT('10 DÍAS (1 UA)'!S11:S93)","v":11},{"$f":"'10 DÍAS (1 UA)'!S122","v":3.4545454545454546},{"$f":"COUNT('20 DÍAS (1 UA)'!S9:S20)","v":0},{"$f":"'20 DÍAS (1 UA)'!S21","v":{"$error":"#DIV/0!"}},{"$f":"COUNT('10 DÍAS (2 o más UA)'!K7:K35)","v":6},{"$f":"'10 DÍAS (2 o más UA)'!K58","v":0},{"$f":"COUNTIF('20 DÍAS (2 o más UA)'!K7:K8, \">10\")","v":0},{"$f":"'20 DÍAS (2 o más UA)'!K34","v":{"$error":"#DIV/0!"}},{"$f":"CountCcolor('Solicitudes Acceso restringido'!$B$2,'Solicitudes Acceso restringido'!K9:K18)","v":0},null,{"$f":"COUNT('5 DÍAS (1 UA)'!S7:S106)","v":0},null,{"$f":"COUNT('5 DIAS (2 o más UA)'!K7:K16)","v":1}]
["DAF",{"$f":"COUNT('10 DÍAS (1 UA)'!U11:U91)","v":43},{"$f":"'10 DÍAS (1 UA)'!U122","v":7.7674418604651159},{"$f":"COUNT('20 DÍAS (1 UA)'!U9:U20)","v":5},null,{"$f":"COUNT('10 DÍAS (2 o más UA)'!L7:L35)","v":9},{"$f":"'10 DÍAS (2 o más UA)'!L58","v":10},{"$f":"COUNTIF('20 DÍAS (2 o más UA)'!L7:L8, \">10\")","v":0},{"$f":"'20 DÍAS (2 o más UA)'!L34","v":18},{"$f":"CountCcolor('Solicitudes Acceso restringido'!$B$2,'Solicitudes Acceso restringido'!L9:L18)","v":1},{"$f":"'Solicitudes Acceso restringido'!L19","v":9},{"$f":"COUNT('5 DÍAS (1 UA)'!U7:U106)","v":34},{"$f":"'5 DÍAS (1 UA)'!U290","v":4.6764705882352944},{"$f":"COUNT('5 DIAS (2 o más UA)'!L7:L16)","v":4},{"$f":"'5 DIAS (2 o más UA)'!L17","v":4.75}]
["DCS",{"$f":"COUNT('10 DÍAS (1 UA)'!W11:W93)","v":4},{"$f":"'10 DÍAS (1 UA)'!W122","v":4},{"$f":"COUNT('20 DÍAS (1 UA)'!W9:W20)","v":0},null,{"$f":"COUNT('10 DÍAS (2 o más UA)'!M7:M35)","v":0},null,{"$f":"COUNTIF('20 DÍAS (2 o más UA)'!M7:M8, \">10\")","v":0},null,{"$f":"CountCcolor('Solicitudes Acceso restringido'!$B$2,'Solicitudes Acceso restringido'!M9:M18)","v":0},null,{"$f":"COUNT('5 DÍAS (1 UA)'!W7:W106)","v":0},null,{"$f":"COUNT('5 DIAS (2 o más UA)'!M7:M16)","v":2},{"$f":"'5 DIAS (2 o más UA)'!M17","v":3.5}]
["OIP",{"$f":"COUNT('10 DÍAS (1 UA)'!Y11:Y90)","v":9},{"$f":"'10 DÍAS (1 UA)'!Y122","v":3.3333333333333335},{"$f":"COUNT('20 DÍAS (1 UA)'!Y9:Y20)","v":0},null,{"$f":"COUNT('10 DÍAS (2 o más UA)'!N7:N35)","v":5},{"$f":"'10 DÍAS (2 o más UA)'!N58","v":0},{"$f":"COUNTIF('20 DÍAS (2 o más UA)'!N7:N8, \">10\")","v":0},null,{"$f":"CountCcolor('Solicitudes Acceso restringido'!$B$2,'Solicitudes Acceso restringido'!N9:N18)","v":0},null,{"$f":"COUNT('5 DÍAS (1 UA)'!Y7:Y106)","v":100},{"$f":"'5 DÍAS (1 UA)'!Y290","v":6.0283687943262408E-2},{"$f":"COUNT('5 DIAS (2 o más UA)'!N7:N16)","v":0},{"$f":"'5 DIAS (2 o más UA)'!N17","v":{"$error":"#DIV/0!"}}]
[]
[null,"FOLIOS PENDIENTES A LA FECHA DE REPORTE"]

{"sheet":"TABLAS","index":9,"n_rows":16,"n_cols":16,"rows_kept":16,"cut":false,"hidden":false,"merged":[[0,11,0,12],[0,13,0,14],[0,1,0,2],[0,3,0,4],[0,5,0,6],[0,7,0,8],[0,9,0,10]]}
["Unidad Administrativa","SIP de 10 días atendidas por una UA",null,"SIP de 20 días atendidas por una UA",null,"SIP de 10 días atendidas por dos o más UA",null,"SIP de 20 días atendidas por dos o más UA",null,"Solicitudes Acceso Restringido",null,"SIP de 5 días atendidas por 1 UA",null,"SIP de 5 días atendidas por 2 o más UA"]
[null,"Folios","Promedio días atención","Folios","Promedio días atención","Folios","Promedio días atención","Folios","Promedio días atención","Folios","Promedio días atención","Folios","Promedio días atención","Folios","Promedio días atención"]
["Secretaría Técnica",{"$f":"COUNT('10 DÍAS (1 UA)'!C11:C120)","v":7},{"$f":"'10 DÍAS (1 UA)'!C122","v":7.2857142857142856},{"$f":"COUNT('20 DÍAS (1 UA)'!C9:C20)","v":0},null,{"$f":"COUNT('10 DÍAS (2 o más UA)'!C7:C100)","v":22},{"$f":"'10 DÍAS (2 o más UA)'!C102","v":7.0454545454545459},{"$f":"COUNTIF('20 DÍAS (2 o más UA)'!C7:C22, \">10\")","v":1},{"$f":"'20 DÍAS (2 o más UA)'!C34","v":13},{"$f":"CountCcolor('Solicitudes Acceso restringido'!$B$2,'Solicitudes Acceso restringido'!C9:C18)","v":0},null,{"$f":"COUNT('5 DÍAS (1 UA)'!C7:C289)","v":0},null,{"$f":"COUNT('5 DIAS (2 o más UA)'!C7:C16)","v":2},{"$f":"'5 DIAS (2 o más UA)'!C17","v":5},{"$f":"SUM(B3+D3+F3+H3+J3+L3+N3)","v":32}]
["Secretaría Ejecutiva",{"$f":"COUNT('10 DÍAS (1 UA)'!E11:E120)","v":16},{"$f":"'10 DÍAS (1 UA)'!E122","v":8.75},{"$f":"COUNT('20 DÍAS (1 UA)'!E9:E20)","v":1},{"$f":"'20 DÍAS (1 UA)'!E21","v":20},{"$f":"COUNT('10 DÍAS (2 o más UA)'!D7:D100)","v":27},{"$f":"'10 DÍAS (2 o más UA)'!D102","v":7.1481481481481479},{"$f":"COUNTIF('20 DÍAS (2 o más UA)'!D7:D22, \">10\")","v":0},null,{"$f":"CountCcolor('Solicitudes Acceso restringido'!$B$2,'Solicitudes Acceso restringido'!D9:D18)","v":0},null,{"$f":"COUNT('5 DÍAS (1 UA)'!E7:E289)","v":2},{"$f":"'5 DÍAS (1 UA)'!E290","v":5},{"$f":"COUNT('5 DIAS (2 o más UA)'!D7:D16)","v":2},{"$f":"'5 DIAS (2 o más UA)'!D17","v":5},48]
["Contraloría",{"$f":"COUNT('10 DÍAS (1 UA)'!G11:G120)","v":6},{"$f":"'10 DÍAS (1 UA)'!G122","v":4.833333333333333},{"$f":"COUNT('20 DÍAS (1 UA)'!G9:G20)","v":0},null,{"$f":"COUNT('10 DÍAS (2 o más UA)'!E7:E100)","v":18},{"$f":"'10 DÍAS (2 o más UA)'!E102","v":5.0555555555555554},{"$f":"COUNTIF('20 DÍAS (2 o más UA)'!E7:E22, \">10\")","v":0},null,{"$f":"CountCcolor('Solicitudes Acceso restringido'!$B$2,'Solicitudes Acceso restringido'!E9:E18)","v":0},null,{"$f":"COUNT('5 DÍAS (1 UA)'!G7:G289)","v":1},{"$f":"'5 DÍAS (1 UA)'!G290","v":4},{"$f":"COUNT('5 DIAS (2 o más UA)'!E7:E16)","v":4},{"$f":"'5 DIAS (2 o más UA)'!E17","v":3.75},29]
["DJDN",{"$f":"COUNT('10 DÍAS (1 UA)'!I11:I120)","v":60},{"$f":"'10 DÍAS (1 UA)'!I122","v":9.25},{"$f":"COUNT('20 DÍAS (1 UA)'!I9:I20)","v":5},{"$f":"'20 DÍAS (1 UA)'!I21","v":18.399999999999999},{"$f":"COUNT('10 DÍAS (2 o más UA)'!F7:F100)","v":40},{"$f":"'10 DÍAS (2 o más UA)'!F102","v":9.0500000000000007},{"$f":"COUNTIF('20 DÍAS (2 o más UA)'!F7:F22, \">10\")","v":3},{"$f":"'20 DÍAS (2 o más UA)'!F34","v":20},{"$f":"CountCcolor('Solicitudes Acceso restringido'!$B$2,'Solicitudes Acceso restringido'!F9:F18)","v":0},null,{"$f":"COUNT('5 DÍAS (1 UA)'!I7:I289)","v":3},{"$f":"'5 DÍAS (1 UA)'!I290","v":5},{"$f":"COUNT('5 DIAS (2 o más UA)'!F7:F16)","v":3},{"$f":"'5 DIAS (2 o más UA)'!F17","v":5},114]
["DCCT",{"$f":"COUNT('10 DÍAS (1 UA)'!K11:K120)","v":6},{"$f":"'10 DÍAS (1 UA)'!K122","v":4.833333333333333},{"$f":"COUNT('20 DÍAS (1 UA)'!K9:K20)","v":0},null,{"$f":"COUNT('10 DÍAS (2 o más UA)'!G7:G100)","v":34},{"$f":"'10 DÍAS (2 o más UA)'!G102","v":5.1470588235294121},{"$f":"COUNTIF('20 DÍAS (2 o más UA)'!G7:G22, \">10\")","v":0},null,{"$f":"CountCcolor('Solicitudes Acceso restringido'!$B$2,'Solicitudes Acceso restringido'!G9:G18)","v":0},null,{"$f":"COUNT('5 DÍAS (1 UA)'!K7:K289)","v":0},null,{"$f":"COUNT('5 DIAS (2 o más UA)'!G7:G16)","v":3},{"$f":"'5 DIAS (2 o más UA)'!G17","v":3},43]
["DEyE",{"$f":"COUNT('10 DÍAS (1 UA)'!M11:M120)","v":40},{"$f":"'10 DÍAS (1 UA)'!M122","v":5.7750000000000004},{"$f":"COUNT('20 DÍAS (1 UA)'!M9:M20)","v":3},{"$f":"'20 DÍAS (1 UA)'!M21","v":13.333333333333334},{"$f":"COUNT('10 DÍAS (2 o más UA)'!H7:H100)","v":24},{"$f":"'10 DÍAS (2 o más UA)'!H102","v":7.541666666666667},{"$f":"COUNTIF('20 DÍAS (2 o más UA)'!H7:H22, \">10\")","v":1},{"$f":"'20 DÍAS (2 o más UA)'!H34","v":11},{"$f":"CountCcolor('Solicitudes Acceso restringido'!$B$2,'Solicitudes Acceso restringido'!H9:H18)","v":0},null,{"$f":"COUNT('5 DÍAS (1 UA)'!M7:M289)","v":0},null,{"$f":"COUNT('5 DIAS (2 o más UA)'!H7:H16)","v":1},{"$f":"'5 DIAS (2 o más UA)'!H17","v":5},69]
["DDP",{"$f":"COUNT('10 DÍAS (1 UA)'!O11:O120)","v":3},{"$f":"'10 DÍAS (1 UA)'!O122","v":7.333333333333333},{"$f":"COUNT('20 DÍAS (1 UA)'!O9:O20)","v":8},{"$f":"'20 DÍAS (1 UA)'!O21","v":17.625},{"$f":"COUNT('10 DÍAS (2 o más UA)'!I7:I100)","v":12},{"$f":"'10 DÍAS (2 o más UA)'!I102","v":7.083333333333333},{"$f":"COUNTIF('20 DÍAS (2 o más UA)'!I7:I20, \">10\")","v":1},{"$f":"'20 DÍAS (2 o más UA)'!I34","v":20},{"$f":"CountCcolor('Solicitudes Acceso restringido'!$B$2,'Solicitudes Acceso restringido'!I9:I18)","v":0},null,{"$f":"COUNT('5 DÍAS (1 UA)'!O7:O289)","v":0},null,{"$f":"COUNT('5 DIAS (2 o más UA)'!I7:I16)","v":2},{"$f":"'5 DIAS (2 o más UA)'!I17","v":5},26]
["DVS",{"$f":"COUNT('10 DÍAS (1 UA)'!Q11:Q120)","v":5},{"$f":"'10 DÍAS (1 UA)'!Q122","v":5.4},{"$f":"COUNT('20 DÍAS (1 UA)'!Q9:Q20)","v":0},null,{"$f":"COUNT('10 DÍAS (2 o más UA)'!J7:J100)","v":24},{"$f":"'10 DÍAS (2 o más UA)'!J102","v":6.875},{"$f":"COUNTIF('20 DÍAS (2 o más UA)'!J7:J22, \">10\")","v":0},null,{"$f":"CountCcolor('Solicitudes Acceso restringido'!$B$2,'Solicitudes Acceso restringido'!J9:J18)","v":0},null,{"$f":"COUNT('5 DÍAS (1 UA)'!Q7:Q289)","v":1},{"$f":"'5 DÍAS (1 UA)'!Q290","v":3},{"$f":"COUNT('5 DIAS (2 o más UA)'!J7:J16)","v":2},{"$f":"'5 DIAS (2 o más UA)'!J17","v":3.5},32]
["DTI",{"$f":"COUNT('10 DÍAS (1 UA)'!S11:S120)","v":11},{"$f":"'10 DÍAS (1 UA)'!S122","v":3.4545454545454546},{"$f":"COUNT('20 DÍAS (1 UA)'!S9:S20)","v":0},null,{"$f":"COUNT('10 DÍAS (2 o más UA)'!K7:K100)","v":20},{"$f":"'10 DÍAS (2 o más UA)'!K102","v":5.5},{"$f":"COUNTIF('20 DÍAS (2 o más UA)'!K7:K22, \">10\")","v":0},null,{"$f":"CountCcolor('Solicitudes Acceso restringido'!$B$2,'Solicitudes Acceso restringido'!K9:K18)","v":0},null,{"$f":"COUNT('5 DÍAS (1 UA)'!S7:S289)","v":0},null,{"$f":"COUNT('5 DIAS (2 o más UA)'!K7:K16)","v":1},{"$f":"'5 DIAS (2 o más UA)'!K17","v":4},32]
["DAF",{"$f":"COUNT('10 DÍAS (1 UA)'!U11:U120)","v":43},{"$f":"'10 DÍAS (1 UA)'!U122","v":7.7674418604651159},{"$f":"COUNT('20 DÍAS (1 UA)'!U9:U20)","v":5},{"$f":"'20 DÍAS (1 UA)'!U21","v":14.2},{"$f":"COUNT('10 DÍAS (2 o más UA)'!L7:L100)","v":42},{"$f":"'10 DÍAS (2 o más UA)'!L102","v":7.7380952380952381},{"$f":"COUNTIF('20 DÍAS (2 o más UA)'!L7:L22, \">10\")","v":8},{"$f":"'20 DÍAS (2 o más UA)'!L34","v":18},{"$f":"CountCcolor('Solicitudes Acceso restringido'!$B$2,'Solicitudes Acceso restringido'!L9:L18)","v":1},{"$f":"'Solicitudes Acceso restringido'!L19","v":9},{"$f":"COUNT('5 DÍAS (1 UA)'!U7:U289)","v":34},{"$f":"'5 DÍAS (1 UA)'!U290","v":4.6764705882352944},{"$f":"COUNT('5 DIAS (2 o más UA)'!L7:L16)","v":4},{"$f":"'5 DIAS (2 o más UA)'!L17","v":4.75},137]
["DCS",{"$f":"COUNT('10 DÍAS (1 UA)'!W11:W120)","v":4},{"$f":"'10 DÍAS (1 UA)'!W122","v":4},{"$f":"COUNT('20 DÍAS (1 UA)'!W9:W20)","v":0},null,{"$f":"COUNT('10 DÍAS (2 o más UA)'!M7:M100)","v":10},{"$f":"'10 DÍAS (2 o más UA)'!M102","v":6.5},{"$f":"COUNTIF('20 DÍAS (2 o más UA)'!M7:M8, \">10\")","v":0},null,{"$f":"CountCcolor('Solicitudes Acceso restringido'!$B$2,'Solicitudes Acceso restringido'!M9:M18)","v":0},null,{"$f":"COUNT('5 DÍAS (1 UA)'!W7:W289)","v":0},null,{"$f":"COUNT('5 DIAS (2 o más UA)'!M7:M16)","v":2},{"$f":"'5 DIAS (2 o más UA)'!M17","v":3.5},16]
["OIP",{"$f":"COUNT('10 DÍAS (1 UA)'!Y11:Y120)","v":9},{"$f":"'10 DÍAS (1 UA)'!Y122","v":3.3333333333333335},{"$f":"COUNT('20 DÍAS (1 UA)'!Y9:Y20)","v":0},null,{"$f":"COUNT('10 DÍAS (2 o más UA)'!N7:N100)","v":9},{"$f":"'10 DÍAS (2 o más UA)'!N102","v":0.22222222222222221},{"$f":"COUNTIF('20 DÍAS (2 o más UA)'!N7:N8, \">10\")","v":0},null,{"$f":"CountCcolor('Solicitudes Acceso restringido'!$B$2,'Solicitudes Acceso restringido'!N9:N18)","v":0},null,{"$f":"COUNT('5 DÍAS (1 UA)'!Y7:Y289)","v":282},{"$f":"'5 DÍAS (1 UA)'!Y290","v":6.0283687943262408E-2},{"$f":"COUNT('5 DIAS (2 o más UA)'!N7:N16)","v":0},null,300]
["SUMA/PROMEDIO",{"$f":"SUM(B3:B14)","v":210},{"$f":"SUM(C3:C14)/12","v":6.0013362445048486},{"$f":"SUM(D3:D14)","v":22},{"$f":"SUM(E3:E14)/4","v":20.889583333333334},{"$f":"SUM(F3:F14)","v":282},{"$f":"SUM(G3:G14)/12","v":6.2422112110837604},{"$f":"SUM(H3:H14)","v":14},{"$f":"SUM(I3:I14)/5","v":16.399999999999999},{"$f":"SUM(J3:J14)","v":1},9,{"$f":"SUM(L3:L14)","v":323},{"$f":"SUM(M3:M14)/6","v":3.6227923793630925},{"$f":"SUM(N3:N14)","v":26},{"$f":"SUM(O3:O14)/11","v":4.3181818181818183},{"$f":"SUM(C15+E15+G15+I15+K15+M15+O15)/7","v":9.4963007123524079}]
[null,210,null,22,null,94,null,14,null,1,null,323,null,6,null,{"$f":"SUM(B16:O16)","v":670}]